Departmental Area,Entity,Payment Date,Expense type,Expense Area,Supplier Name,Payment Reference, Invoice Distribution Amount ,Description,Supplier Type,Expenditure Type,,
UK Statistics Family,Office for National Statistics,04/05/2021,Prepayments - Titchfield Postage Meter,Titchfield Postage,Pitney Bowes Ltd,200539,"51,214.41",Postage,Large,Programme Expenditure,,
UK Statistics Family,Office for National Statistics,04/05/2021,Travel And Subsistence,Corporate Centre,Corporate Travel Management ,200540,"43,331.64",Travel and Accommodation,SME,Programme Expenditure,,
UK Statistics Family,Office for National Statistics,04/05/2021,End User Software And Hardware,Business Architecture,Phoenix Software Ltd,200541,"1,021.67",Software Licenses,SME,Programme Expenditure,,
UK Statistics Family,Office for National Statistics,04/05/2021,End User Software And Hardware,CLOUD ARCHITECTURE,Phoenix Software Ltd,200541,"65,998.58",Software Licenses,SME,Programme Expenditure,,
UK Statistics Family,Office for National Statistics,04/05/2021,Postage,Survey Processing Centre,DHL Parcel Ltd,200544,"54,531.08",Postage,Large,Programme Expenditure,,
UK Statistics Family,Office for National Statistics,04/05/2021,Exp - Purchase Of Goods/Services - IT Contractual Services,Digital Publishing,Methods Business & Digital Technology Ltd,200546,"103,923.00",Information Management Services,Large,Programme Expenditure,,
UK Statistics Family,Office for National Statistics,04/05/2021,Exp - Purchase Of Goods/Services - Contractors,Sustainability And Inequalities,La International,200548,"2,525.52",Information Management Services,SME,Programme Expenditure,,
UK Statistics Family,Office for National Statistics,04/05/2021,Exp - Purchase Of Goods/Services - Contractors,Data Architecture,La International,200548,3588.3,Information Management Services,SME,Programme Expenditure,,
UK Statistics Family,Office for National Statistics,04/05/2021,Exp - Purchase Of Goods/Services - Contractors,Data Architecture,La International,200548,-2306.78,Information Management Services,SME,Programme Expenditure,,
UK Statistics Family,Office for National Statistics,04/05/2021,Exp - Purchase Of Goods/Services - Contractors,Data Architecture,La International,200548,"9,803.80",Information Management Services,SME,Programme Expenditure,,
UK Statistics Family,Office for National Statistics,04/05/2021,Exp - Purchase Of Goods/Services - Contractors,CLOUD ARCHITECTURE,La International,200548,"6,920.32",Information Management Services,SME,Programme Expenditure,,
UK Statistics Family,Office for National Statistics,04/05/2021,Exp - Purchase Of Goods/Services - Contractors,Tech Delivery Legacy Sp,La International,200548,"12,687.20",Information Management Services,SME,Programme Expenditure,,
UK Statistics Family,Office for National Statistics,04/05/2021,Exp - Purchase Of Goods/Services - Contractors,Data As A Service,La International,200548,"12,014.46",Information Management Services,SME,Programme Expenditure,,
UK Statistics Family,Office for National Statistics,04/05/2021,"ICT Outsourcing, Maintenance And Support",IT Operations,CTS (Cloud Technology Solutions Ltd),200556,"38,576.05",DST Infrastructure Preparation,Large,Programme Expenditure,,
UK Statistics Family,Office for National Statistics,04/05/2021,EXP - PURCHASE OF GOODS/SERVICES -  NON IT CONTRACTUAL PAYMENTS,Census CCS Data Collection,Adecco UK Limited,200558,"228,715.20",Census People Services Contractual,SME,Programme Expenditure,,
UK Statistics Family,Office for National Statistics,04/05/2021,Exp - Purchase Of Goods/Services - Contractors,Operations,LA FOSSE ASSOCIATES LIMITED,200566,"5,940.00",Information Management Services,Large,Programme Expenditure,,
UK Statistics Family,Office for National Statistics,04/05/2021,Exp - Purchase Of Goods/Services - Contractors,Data Architecture,LA FOSSE ASSOCIATES LIMITED,200566,"10,350.00",Information Management Services,Large,Programme Expenditure,,
UK Statistics Family,Office for National Statistics,04/05/2021,Exp - Purchase Of Goods/Services - Contractors,Tech Delivery Legacy Sp,LA FOSSE ASSOCIATES LIMITED,200566,"3,600.00",Information Management Services,Large,Programme Expenditure,,
UK Statistics Family,Office for National Statistics,04/05/2021,Exp - Purchase Of Goods/Services - Contractors,Tech Delivery Legacy Sp,LA FOSSE ASSOCIATES LIMITED,200566,"3,600.00",Information Management Services,Large,Programme Expenditure,,
UK Statistics Family,Office for National Statistics,04/05/2021,Exp - Purchase Of Goods/Services - Contractors,Tech Delivery Legacy Sp,LA FOSSE ASSOCIATES LIMITED,200566,"3,600.00",Information Management Services,Large,Programme Expenditure,,
UK Statistics Family,Office for National Statistics,04/05/2021,Exp - Purchase Of Goods/Services - Contractors,IT Applications,LA FOSSE ASSOCIATES LIMITED,200566,"9,360.00",Information Management Services,Large,Programme Expenditure,,
UK Statistics Family,Office for National Statistics,04/05/2021,Capital Major Works >25K,Property Titchfield,Stanley Security,200569,"161,600.70",Buildings Maintenance,SME,Programme Expenditure,,
UK Statistics Family,Office for National Statistics,04/05/2021,Travel And Subsistence,Overseas Development,"Foreign, Commonwealth & Development Office",200570,"80,158.63",One HMG Platform Charges,Large,Programme Expenditure,,
UK Statistics Family,Office for National Statistics,05/05/2021,IT (Owned) At Cost - Additions,Strategy And Architecture,Scc,200777,"54,338.26",Software Licenses,Large,Programme Expenditure,,
UK Statistics Family,Office for National Statistics,05/05/2021,Exp - Purchase Of Goods/Services - Other ICT Costs Software,Stakeholder Engagement And Comms,Hootsuite,200780,"29,501.00",Software Licenses,SME,Programme Expenditure,,
UK Statistics Family,Office for National Statistics,05/05/2021,End User Software And Hardware,Digital Publishing,Hootsuite,200780,"2,000.00",Software Licenses,SME,Programme Expenditure,,
UK Statistics Family,Office for National Statistics,05/05/2021,End User Software And Hardware,IT Operations,Hootsuite,200780,"34,999.30",Software Licenses,SME,Programme Expenditure,,
UK Statistics Family,Office for National Statistics,05/05/2021,Exp - Short-Term Contract & Agency Staff - Full Cost,Operations,La International,200782,"2,228.69",Information Management Services,SME,Programme Expenditure,,
UK Statistics Family,Office for National Statistics,05/05/2021,Exp - Purchase Of Goods And Services Consultants,Digital Publishing,La International,200782,"11,533.97",Information Management Services,SME,Programme Expenditure,,
UK Statistics Family,Office for National Statistics,05/05/2021,Exp - Purchase Of Goods/Services - Contractors,CLOUD ARCHITECTURE,La International,200782,"16,916.33",Information Management Services,SME,Programme Expenditure,,
UK Statistics Family,Office for National Statistics,05/05/2021,Exp - Purchase Of Goods/Services - Contractors,IT Operations,La International,200782,"5,228.52",Information Management Services,SME,Programme Expenditure,,
UK Statistics Family,Office for National Statistics,05/05/2021,Print and Post,Social Survey Transformation Newport,APS Group,200783,"14,148.65",Mailing Services,Large,Programme Expenditure,,
UK Statistics Family,Office for National Statistics,05/05/2021,Print and Post,Social Surveys Division,APS Group,200783,"15,548.35",Mailing Services,Large,Programme Expenditure,,
UK Statistics Family,Office for National Statistics,05/05/2021,EXP - PURCHASE OF GOODS/SERVICES -  NON IT CONTRACTUAL PAYMENTS,Recruitment ,Cabinet Office,200784,"74,503.44",Civil Service Recruitment,Large,Programme Expenditure,,
UK Statistics Family,Office for National Statistics,05/05/2021,Exp - Purchase Of Goods And Services Consultants,INTEGRATED DATA STRATEGY AND DELIVERY,Cabinet Office,200784,"7,560.00",Civil Service Recruitment,Large,Programme Expenditure,,
UK Statistics Family,Office for National Statistics,05/05/2021,Recovery Of Secondee Costs,FAST STREAM RECHARGES - CABINET OFFICE,Cabinet Office,200784,"25,838.00",Fast Stream Recruitment,Large,Programme Expenditure,,
UK Statistics Family,Office for National Statistics,05/05/2021,Exp - Purchase Of Goods/Services - IT Contractual Services,IT Operations,Methods Business & Digital Technology Ltd,200788,"100,440.00",Information Management Services,Large,Programme Expenditure,,
UK Statistics Family,Office for National Statistics,05/05/2021,Exp - Purchase Of Goods/Services - IT Contractual Services,Digital Delivery,Methods Business & Digital Technology Ltd,200788,"1,500.00",Information Management Services,Large,Programme Expenditure,,
UK Statistics Family,Office for National Statistics,05/05/2021,Exp - Purchase Of Goods/Services - IT Contractual Services,Tech Delivery Legacy Sp,Armakuni Ltd,200793,"25,080.00",Information Management Services,SME,Programme Expenditure,,
UK Statistics Family,Office for National Statistics,06/05/2021,Hosting,IT Operations,Crown Hosting Data Centres Limited,200795,"48,002.27",Information Management Services,SME,Programme Expenditure,,
UK Statistics Family,Office for National Statistics,06/05/2021,FM Contract Payments,Researcher Support And Data Access ,Vinci Construction UK Limited,200796,"103,075.56",Facilities Mangement Services,Large,Programme Expenditure,,
UK Statistics Family,Office for National Statistics,06/05/2021,Fixtures & Fittings At Cost - Additions,Property Newport,Vinci Construction UK Limited,200796,"108,972.65",Facilities Mangement Services,Large,Programme Expenditure,,
UK Statistics Family,Office for National Statistics,06/05/2021,Fixtures & Fittings At Cost - Additions,Property Titchfield,Vinci Construction UK Limited,200796,"13,082.78",Facilities Mangement Services,Large,Programme Expenditure,,
UK Statistics Family,Office for National Statistics,06/05/2021,Fixtures & Fittings At Cost - Additions,Property Titchfield,Vinci Construction UK Limited,200796,"65,242.80",Facilities Mangement Services,Large,Programme Expenditure,,
UK Statistics Family,Office for National Statistics,06/05/2021,Buildings Under Construction,Property Titchfield,Vinci Construction UK Limited,200796,"517,068.04",Facilities Mangement Services,Large,Programme Expenditure,,
UK Statistics Family,Office for National Statistics,06/05/2021,"ICT Outsourcing, Maintenance And Support",IT Operations,Esri (Uk) Ltd,200798,"282,000.00",Software Licenses,SME,Programme Expenditure,,
UK Statistics Family,Office for National Statistics,06/05/2021,Postage,Survey Processing Centre,DHL Parcel Ltd,200803,"72,923.08",Postage,Large,Programme Expenditure,,
UK Statistics Family,Office for National Statistics,06/05/2021,Exp - Purchase Of Goods/Services - Contractors,Census CCS Data Collection,Hmrc,200804,"229,542.36",Temporary Staff,Large,Programme Expenditure,,
UK Statistics Family,Office for National Statistics,06/05/2021,EXP - PURCHASE OF GOODS/SERVICES -  NON IT CONTRACTUAL PAYMENTS,Data Collection Service,Serco Ltd,200811,"7,705,509.35",Census Contact Centre,Large,Programme Expenditure,,
UK Statistics Family,Office for National Statistics,06/05/2021,EXP - PURCHASE OF GOODS/SERVICES -  NON IT CONTRACTUAL PAYMENTS,Data Collection Service,HH Associates Ltd,200812,"77,285.78",Print and Post Services,SME,Programme Expenditure,,
UK Statistics Family,Office for National Statistics,07/05/2021,Exp - Purchase Of Goods And Services Consultants,Population Statistics Div,NHS Digital,200943,"277,854.00",Statistical Services,Large,Programme Expenditure,,
UK Statistics Family,Office for National Statistics,07/05/2021,Major Works Over 25K,Property Titchfield,Vinci Construction UK Limited,200944,"24,570.00",Facilities Mangement Services,Large,Programme Expenditure,,
UK Statistics Family,Office for National Statistics,07/05/2021,Major Works Over 25K,Property Christchurch,Vinci Construction UK Limited,200944,"7,182.00",Facilities Mangement Services,Large,Programme Expenditure,,
UK Statistics Family,Office for National Statistics,07/05/2021,Exp - Purchase Of Goods/Services - Contractors,Testing,Concept Information Technology Ltd T/A Concept Resourcing,200945,"3,514.03",Information Management Services,Large,Programme Expenditure,,
UK Statistics Family,Office for National Statistics,07/05/2021,Exp - Short-Term Contract & Agency Staff - Full Cost,Covid Infection Survey,Concept Information Technology Ltd T/A Concept Resourcing,200945,"3,022.54",Information Management Services,Large,Programme Expenditure,,
UK Statistics Family,Office for National Statistics,07/05/2021,Exp - Short-Term Contract & Agency Staff - Full Cost,Covid Infection Survey,Concept Information Technology Ltd T/A Concept Resourcing,200945,"3,959.28",Information Management Services,Large,Programme Expenditure,,
UK Statistics Family,Office for National Statistics,07/05/2021,Exp - Short-Term Contract & Agency Staff - Full Cost,Strategy And Engagement,Concept Information Technology Ltd T/A Concept Resourcing,200945,"3,280.31",Information Management Services,Large,Programme Expenditure,,
UK Statistics Family,Office for National Statistics,07/05/2021,Exp - Purchase Of Goods/Services - Contractors,Census & Soc Methodology Dd,Concept Information Technology Ltd T/A Concept Resourcing,200945,"4,045.50",Information Management Services,Large,Programme Expenditure,,
UK Statistics Family,Office for National Statistics,07/05/2021,Exp - Short-Term Contract & Agency Staff - Full Cost,Data Architecture,Concept Information Technology Ltd T/A Concept Resourcing,200945,"2,654.95",Information Management Services,Large,Programme Expenditure,,
UK Statistics Family,Office for National Statistics,07/05/2021,Exp - Purchase Of Goods/Services - Contractors,Data Architecture,Concept Information Technology Ltd T/A Concept Resourcing,200945,"10,620.00",Information Management Services,Large,Programme Expenditure,,
UK Statistics Family,Office for National Statistics,07/05/2021,Exp - Purchase Of Goods/Services - IT Contractual Services,Tech Delivery Legacy Sp,Concept Information Technology Ltd T/A Concept Resourcing,200945,"2,400.00",Information Management Services,Large,Programme Expenditure,,
UK Statistics Family,Office for National Statistics,07/05/2021,Exp - Short-Term Contract & Agency Staff - Full Cost,Prices Division,Concept Information Technology Ltd T/A Concept Resourcing,200945,5.99,Information Management Services,Large,Programme Expenditure,,
UK Statistics Family,Office for National Statistics,07/05/2021,Exp - Short-Term Contract & Agency Staff - Full Cost,Prices Division,Concept Information Technology Ltd T/A Concept Resourcing,200945,"14,535.38",Information Management Services,Large,Programme Expenditure,,
UK Statistics Family,Office for National Statistics,07/05/2021,Surveys,Prices Division,Kantar UK Ltd,200950,"205,897.00",Statistical Services,Large,Programme Expenditure,,
UK Statistics Family,Office for National Statistics,07/05/2021,Exp - Purchase Of Goods/Services - Contractors,Business Architecture,LA FOSSE ASSOCIATES LIMITED,200954,"29,384.94",Information Management Services,Large,Programme Expenditure,,
UK Statistics Family,Office for National Statistics,07/05/2021,Exp - Purchase Of Goods/Services - Contractors,Business Architecture,LA FOSSE ASSOCIATES LIMITED,200954,"5,825.00",Information Management Services,Large,Programme Expenditure,,
UK Statistics Family,Office for National Statistics,07/05/2021,Exp - Purchase Of Goods/Services - Contractors,Testing,LA FOSSE ASSOCIATES LIMITED,200954,"3,000.00",Information Management Services,Large,Programme Expenditure,,
UK Statistics Family,Office for National Statistics,07/05/2021,Exp - Purchase Of Goods/Services - Contractors,Operations,LA FOSSE ASSOCIATES LIMITED,200954,"2,640.00",Information Management Services,Large,Programme Expenditure,,
UK Statistics Family,Office for National Statistics,07/05/2021,Exp - Purchase Of Goods/Services - Contractors,Consultancy Management,LA FOSSE ASSOCIATES LIMITED,200954,"6,450.00",Information Management Services,Large,Programme Expenditure,,
UK Statistics Family,Office for National Statistics,07/05/2021,Exp - Purchase Of Goods/Services - Contractors,Programme Support,LA FOSSE ASSOCIATES LIMITED,200954,"6,000.00",Information Management Services,Large,Programme Expenditure,,
UK Statistics Family,Office for National Statistics,07/05/2021,Exp - Purchase Of Goods/Services - Contractors,Programme Support,LA FOSSE ASSOCIATES LIMITED,200954,"5,500.00",Information Management Services,Large,Programme Expenditure,,
UK Statistics Family,Office for National Statistics,07/05/2021,Exp - Purchase Of Goods/Services - Contractors,Digital Publishing,LA FOSSE ASSOCIATES LIMITED,200954,"4,350.00",Information Management Services,Large,Programme Expenditure,,
UK Statistics Family,Office for National Statistics,07/05/2021,Exp - Purchase Of Goods/Services - Contractors,Researcher Support And Data Access ,LA FOSSE ASSOCIATES LIMITED,200954,"8,820.00",Information Management Services,Large,Programme Expenditure,,
UK Statistics Family,Office for National Statistics,07/05/2021,Exp - Purchase Of Goods/Services - Contractors,Data Architecture,LA FOSSE ASSOCIATES LIMITED,200954,"3,240.00",Information Management Services,Large,Programme Expenditure,,
UK Statistics Family,Office for National Statistics,07/05/2021,Exp - Purchase Of Goods/Services - Contractors,Tech Delivery Legacy Sp,LA FOSSE ASSOCIATES LIMITED,200954,"3,600.00",Information Management Services,Large,Programme Expenditure,,
UK Statistics Family,Office for National Statistics,07/05/2021,Exp - Purchase Of Goods/Services - Contractors,Tech Delivery Legacy Sp,LA FOSSE ASSOCIATES LIMITED,200954,"3,600.00",Information Management Services,Large,Programme Expenditure,,
UK Statistics Family,Office for National Statistics,07/05/2021,Exp - Purchase Of Goods/Services - Contractors,Tech Delivery Legacy Sp,LA FOSSE ASSOCIATES LIMITED,200954,"3,600.00",Information Management Services,Large,Programme Expenditure,,
UK Statistics Family,Office for National Statistics,07/05/2021,Exp - Purchase Of Goods/Services - Contractors,IT Applications,LA FOSSE ASSOCIATES LIMITED,200954,"3,600.00",Information Management Services,Large,Programme Expenditure,,
UK Statistics Family,Office for National Statistics,07/05/2021,Marketing & Media,Stakeholder Engagement And Comms,M&C Saatchi UK Ltd,200955,"304,717.09",Marketing Services,Large,Programme Expenditure,,
UK Statistics Family,Office for National Statistics,07/05/2021,IT (Owned) At Cost - Additions,IT Operations,Insight Direct,200956,"100,030.80",Computers and Peripherals,Large,Programme Expenditure,,
UK Statistics Family,Office for National Statistics,10/05/2021,Telecoms,Digital Delivery,Xma Limited,200968,"859,714.80",Costs Associated with Mobile Devices,Large,Programme Expenditure,,
UK Statistics Family,Office for National Statistics,10/05/2021,Travel And Subsistence,Corporate Centre,Corporate Travel Management ,200969,"26,020.61",Travel and Accommodation,SME,Programme Expenditure,,
UK Statistics Family,Office for National Statistics,10/05/2021,Hosting,IT Operations,Amazon Web Services Inc,200974,"205,109.61",Information Management Services,Large,Programme Expenditure,,
UK Statistics Family,Office for National Statistics,10/05/2021,Exp - Purchase Of Goods/Services - Contractors,Programme Delivery,Parity Resources Limited,200977,"7,819.76",Information Management Services,Large,Programme Expenditure,,
UK Statistics Family,Office for National Statistics,10/05/2021,Exp - Purchase Of Goods/Services - Contractors,Programme Support,Parity Resources Limited,200977,"2,993.80",Information Management Services,Large,Programme Expenditure,,
UK Statistics Family,Office for National Statistics,10/05/2021,Exp - Purchase Of Goods/Services - Contractors,Covid Infection Survey,Parity Resources Limited,200977,"3,000.00",Information Management Services,Large,Programme Expenditure,,
UK Statistics Family,Office for National Statistics,10/05/2021,Exp - Purchase Of Goods/Services - Contractors,Researcher Support And Data Access ,Parity Resources Limited,200977,"3,008.22",Information Management Services,Large,Programme Expenditure,,
UK Statistics Family,Office for National Statistics,10/05/2021,Exp - Short-Term Contract & Agency Staff - Full Cost,Recruitment ,Parity Resources Limited,200977,"1,346.40",Information Management Services,Large,Programme Expenditure,,
UK Statistics Family,Office for National Statistics,10/05/2021,Exp - Purchase Of Goods/Services - Contractors,INTEGRATED DATA STRATEGY AND DELIVERY,Parity Resources Limited,200977,5410.5,Information Management Services,Large,Programme Expenditure,,
UK Statistics Family,Office for National Statistics,10/05/2021,Exp - Short-Term Contract & Agency Staff - Full Cost,Data Architecture,Parity Resources Limited,200977,"2,197.80",Information Management Services,Large,Programme Expenditure,,
UK Statistics Family,Office for National Statistics,10/05/2021,Exp - Purchase Of Goods/Services - Contractors,Data Architecture,Parity Resources Limited,200977,"3,592.56",Information Management Services,Large,Programme Expenditure,,
UK Statistics Family,Office for National Statistics,10/05/2021,Exp - Purchase Of Goods/Services - Contractors,Digital Delivery,Parity Resources Limited,200977,"2,723.40",Information Management Services,Large,Programme Expenditure,,
UK Statistics Family,Office for National Statistics,10/05/2021,Marketing & Media,Stakeholder Engagement And Comms,M&C Saatchi UK Ltd,200980,"66,004.23",Marketing Services,Large,Programme Expenditure,,
UK Statistics Family,Office for National Statistics,11/05/2021,Exp - Purchase Of Goods/Services - IT Contractual Services,Strategy And Architecture,Ibm United Kingdom Ltd,201108,"34,373.11",Information Management Services,Large,Programme Expenditure,,
UK Statistics Family,Office for National Statistics,11/05/2021,Exp - Purchase Of Goods/Services - Contractors,Census & Soc Methodology Dd,Certes Computing Ltd,201110,"10,798.38",Information Management Services,SME,Programme Expenditure,,
UK Statistics Family,Office for National Statistics,11/05/2021,Exp - Purchase Of Goods/Services - Contractors,Data Architecture,Certes Computing Ltd,201110,"2,159.78",Information Management Services,SME,Programme Expenditure,,
UK Statistics Family,Office for National Statistics,11/05/2021,Exp - Purchase Of Goods/Services - Contractors,Data Architecture,Certes Computing Ltd,201110,"13,678.64",Information Management Services,SME,Programme Expenditure,,
UK Statistics Family,Office for National Statistics,11/05/2021,Exp - Purchase Of Goods/Services - Contractors,Strategy And Architecture,Certes Computing Ltd,201110,"14,398.56",Information Management Services,SME,Programme Expenditure,,
UK Statistics Family,Office for National Statistics,11/05/2021,Exp - Purchase Of Goods/Services - Contractors,Tech Delivery Data As A Platform,Certes Computing Ltd,201110,"15,118.49",Information Management Services,SME,Programme Expenditure,,
UK Statistics Family,Office for National Statistics,11/05/2021,Exp - Purchase Of Goods/Services - Contractors ,IT Operations,Certes Computing Ltd,201110,"1,787.90",Information Management Services,SME,Programme Expenditure,,
UK Statistics Family,Office for National Statistics,11/05/2021,Exp - Purchase Of Goods/Services - Contractors,Digital Delivery,Certes Computing Ltd,201110,"13,629.84",Information Management Services,SME,Programme Expenditure,,
UK Statistics Family,Office for National Statistics,11/05/2021,Exp - Purchase Of Goods/Services - Contractors,Business Architecture,La International,201111,"3,524.22",Information Management Services,SME,Programme Expenditure,,
UK Statistics Family,Office for National Statistics,11/05/2021,Exp - Purchase Of Goods/Services - Contractors,Testing,La International,201111,"11,790.12",Information Management Services,SME,Programme Expenditure,,
UK Statistics Family,Office for National Statistics,11/05/2021,Exp - Purchase Of Goods/Services - Contractors,Tech Delivery Legacy Sp,La International,201111,"12,687.20",Information Management Services,SME,Programme Expenditure,,
UK Statistics Family,Office for National Statistics,11/05/2021,Exp - Purchase Of Goods/Services - Contractors,IT Applications,La International,201111,"2,883.48",Information Management Services,SME,Programme Expenditure,,
UK Statistics Family,Office for National Statistics,11/05/2021,Print and Post,Social Surveys Division,APS Group,201113,"42,493.38",Mailing Services,Large,Programme Expenditure,,
UK Statistics Family,Office for National Statistics,11/05/2021,EXP - PURCHASE OF GOODS/SERVICES -  NON IT CONTRACTUAL PAYMENTS,Data Collection Service,Leidos Innovations UK Limited,201117,"4,112,865.61",Questionnaire Management,Large,Programme Expenditure,,
UK Statistics Family,Office for National Statistics,11/05/2021,Surveys,Crime Statistics,Kantar UK Ltd,201118,"261,230.20",Statistical Services,Large,Programme Expenditure,,
UK Statistics Family,Office for National Statistics,11/05/2021,Marketing & Media,Stakeholder Engagement And Comms,Manning Gottlieb,201119,"2,129,071.61",Marketing Services,Large,Programme Expenditure,,
UK Statistics Family,Office for National Statistics,12/05/2021,Surveys,Corporations,Orient Capital,201261,"71,610.00",Statistical Services,SME,Programme Expenditure,,
UK Statistics Family,Office for National Statistics,12/05/2021,Telecoms,IT Operations,Vodafone Corporate Ltd,201265,"45,935.22",Mobile Device Charges,Large,Programme Expenditure,,
UK Statistics Family,Office for National Statistics,12/05/2021,Exp - Short-Term Contract & Agency Staff - Full Cost,Business Change Support,Concept Information Technology Ltd T/A Concept Resourcing,201268,"4,212.50",Information Management Services,Large,Programme Expenditure,,
UK Statistics Family,Office for National Statistics,12/05/2021,Exp - Short-Term Contract & Agency Staff - Full Cost,Business Change Support,Concept Information Technology Ltd T/A Concept Resourcing,201268,"3,604.98",Information Management Services,Large,Programme Expenditure,,
UK Statistics Family,Office for National Statistics,12/05/2021,Exp - Short-Term Contract & Agency Staff - Full Cost,Business Change Support,Concept Information Technology Ltd T/A Concept Resourcing,201268,"3,576.40",Information Management Services,Large,Programme Expenditure,,
UK Statistics Family,Office for National Statistics,12/05/2021,Exp - Short-Term Contract & Agency Staff - Full Cost,Data Architecture,Concept Information Technology Ltd T/A Concept Resourcing,201268,"8,112.35",Information Management Services,Large,Programme Expenditure,,
UK Statistics Family,Office for National Statistics,12/05/2021,Exp - Purchase Of Goods/Services - Contractors,Data Architecture,Concept Information Technology Ltd T/A Concept Resourcing,201268,"5,850.00",Information Management Services,Large,Programme Expenditure,,
UK Statistics Family,Office for National Statistics,12/05/2021,Exp - Short-Term Contract & Agency Staff - Full Cost,Business Statistics Transformation,Concept Information Technology Ltd T/A Concept Resourcing,201268,"2,827.56",Information Management Services,Large,Programme Expenditure,,
UK Statistics Family,Office for National Statistics,12/05/2021,Exp - Short-Term Contract & Agency Staff - Full Cost,Interviewer Management TU,Concept Information Technology Ltd T/A Concept Resourcing,201268,"1,454.70",Information Management Services,Large,Programme Expenditure,,
UK Statistics Family,Office for National Statistics,12/05/2021,Exp - Short-Term Contract & Agency Staff - Full Cost,Survey Management,Concept Information Technology Ltd T/A Concept Resourcing,201268,"1,474.03",Information Management Services,Large,Programme Expenditure,,
UK Statistics Family,Office for National Statistics,12/05/2021,End User Software And Hardware,IT Operations,Scc,201273,"137,581.82",Software Licenses,Large,Programme Expenditure,,
UK Statistics Family,Office for National Statistics,12/05/2021,Travel And Subsistence,Corporate Centre,Calder World of Travel,201278,"43,083.60",Multiple Venue Hire ,SME,Programme Expenditure,,
UK Statistics Family,Office for National Statistics,12/05/2021,Exp - Purchase Of Goods/Services - Contractors,Business Architecture,Certes Computing Ltd,201280,"19,552.22",Information Management Services,SME,Programme Expenditure,,
UK Statistics Family,Office for National Statistics,12/05/2021,Exp - Purchase Of Goods/Services - Contractors,Testing,Certes Computing Ltd,201280,"15,461.29",Information Management Services,SME,Programme Expenditure,,
UK Statistics Family,Office for National Statistics,12/05/2021,Exp - Purchase Of Goods/Services - Contractors,Security Advisory,Certes Computing Ltd,201280,"15,264.70",Information Management Services,SME,Programme Expenditure,,
UK Statistics Family,Office for National Statistics,12/05/2021,Exp - Purchase Of Goods/Services - Contractors,Strategy And Architecture,Certes Computing Ltd,201280,"2,497.86",Information Management Services,SME,Programme Expenditure,,
UK Statistics Family,Office for National Statistics,12/05/2021,Exp - Purchase Of Goods/Services - Contractors,Strategy And Architecture,Certes Computing Ltd,201280,"15,819.78",Information Management Services,SME,Programme Expenditure,,
UK Statistics Family,Office for National Statistics,12/05/2021,Exp - Purchase Of Goods/Services - Contractors,Tech Delivery Legacy Sp,Certes Computing Ltd,201280,"15,118.49",Information Management Services,SME,Programme Expenditure,,
UK Statistics Family,Office for National Statistics,12/05/2021,Exp - Purchase Of Goods/Services - Contractors,Tech Delivery Legacy Sp,Certes Computing Ltd,201280,"9,799.74",Information Management Services,SME,Programme Expenditure,,
UK Statistics Family,Office for National Statistics,12/05/2021,Exp - Purchase Of Goods/Services - Contractors,Digital Delivery,Certes Computing Ltd,201280,"7,200.00",Information Management Services,SME,Programme Expenditure,,
UK Statistics Family,Office for National Statistics,12/05/2021,Exp - Purchase Of Goods/Services - Contractors,Digital Delivery,Certes Computing Ltd,201280,"14,091.12",Information Management Services,SME,Programme Expenditure,,
UK Statistics Family,Office for National Statistics,12/05/2021,Exp - Purchase Of Goods/Services - Contractors,Digital Delivery,Certes Computing Ltd,201280,"14,795.68",Information Management Services,SME,Programme Expenditure,,
UK Statistics Family,Office for National Statistics,12/05/2021,Exp - Purchase Of Goods/Services - Contractors,Digital Delivery,Certes Computing Ltd,201280,"15,147.96",Information Management Services,SME,Programme Expenditure,,
UK Statistics Family,Office for National Statistics,12/05/2021,Surveys,Prices Division,Kantar UK Ltd,201290,"205,897.00",Statistical Services,Large,Programme Expenditure,,
UK Statistics Family,Office for National Statistics,12/05/2021,Exp - Purchase Of Goods/Services - IT Contractual Services,IT Operations,Methods Business & Digital Technology Ltd,201292,40050,Information Management Services,Large,Programme Expenditure,,
UK Statistics Family,Office for National Statistics,12/05/2021,Exp - Purchase Of Goods/Services - IT Contractual Services,Tech Delivery Next Gen IT And Infrastructure,Diegesis Limited,201295,"50,430.00",Information Management Services,Large,Programme Expenditure,,
UK Statistics Family,Office for National Statistics,12/05/2021,Exp - Purchase Of Goods/Services - Contractors,Census Planning And Monitoring,SmartSourcing Ltd,201298,"19,776.42",Information Management Services,SME,Programme Expenditure,,
UK Statistics Family,Office for National Statistics,12/05/2021,Exp - Purchase Of Goods/Services - Contractors,Programme Support,SmartSourcing Ltd,201298,"16,082.08",Information Management Services,SME,Programme Expenditure,,
UK Statistics Family,Office for National Statistics,12/05/2021,Exp - Purchase Of Goods And Services Consultants,Business Architecture Transformation And Statistical Strategy,SmartSourcing Ltd,201298,"10,338.48",Information Management Services,SME,Programme Expenditure,,
UK Statistics Family,Office for National Statistics,12/05/2021,Exp - Purchase Of Goods/Services - Contractors,Data Architecture,SmartSourcing Ltd,201298,"2,157.70",Information Management Services,SME,Programme Expenditure,,
UK Statistics Family,Office for National Statistics,12/05/2021,Exp - Purchase Of Goods/Services - Contractors,Data Architecture,SmartSourcing Ltd,201298,"2,412.00",Information Management Services,SME,Programme Expenditure,,
UK Statistics Family,Office for National Statistics,12/05/2021,Exp - Purchase Of Goods/Services - Contractors,Tech Delivery Legacy Sp,SmartSourcing Ltd,201298,"12,946.56",Information Management Services,SME,Programme Expenditure,,
UK Statistics Family,Office for National Statistics,12/05/2021,Exp - Purchase Of Goods/Services - Contractors,Tech Delivery Data As A Platform,SmartSourcing Ltd,201298,"3,600.00",Information Management Services,SME,Programme Expenditure,,
UK Statistics Family,Office for National Statistics,12/05/2021,Exp - Purchase Of Goods/Services - Contractors,IT Applications,SmartSourcing Ltd,201298,"3,596.16",Information Management Services,SME,Programme Expenditure,,
UK Statistics Family,Office for National Statistics,12/05/2021,Exp - Purchase Of Goods/Services - Contractors,Data As A Service,SmartSourcing Ltd,201298,"14,384.64",Information Management Services,SME,Programme Expenditure,,
UK Statistics Family,Office for National Statistics,12/05/2021,Telecoms,Census CCS Data Collection,Cdw Limited,201299,"32,978.32",Software Licenses,Large,Programme Expenditure,,
UK Statistics Family,Office for National Statistics,12/05/2021,Telecoms,Census CCS Data Collection,Cdw Limited,201299,"4,482.00",Software Licenses,Large,Programme Expenditure,,
UK Statistics Family,Office for National Statistics,12/05/2021,Telecoms,IT Operations,Cdw Limited,201299,"-6,972.00",Software Licenses,Large,Programme Expenditure,,
UK Statistics Family,Office for National Statistics,12/05/2021,Marketing & Media,Social Survey Transformation Newport,Banner Group Ltd,201300,"4,481.28",Stationary,SME,Programme Expenditure,,
UK Statistics Family,Office for National Statistics,12/05/2021,Marketing & Media,Social Surveys Division,Banner Group Ltd,201300,"83,358.72",Stationary,SME,Programme Expenditure,,
UK Statistics Family,Office for National Statistics,13/05/2021,Exp - Purchase Of Goods/Services - Incentive Payments,Social Survey Transformation Newport,P & Mm Ltd,201304,"488,089.00",Survey Response Incentive Vouchers,Large,Programme Expenditure,,
UK Statistics Family,Office for National Statistics,13/05/2021,Exp - Purchase Of Goods/Services - Incentive Payments,Survey Management,P & Mm Ltd,201304,"28,700.00",Survey Response Incentive Vouchers,Large,Programme Expenditure,,
UK Statistics Family,Office for National Statistics,13/05/2021,Exp - Purchase Of Goods/Services - Incentive Payments,Survey Management,P & Mm Ltd,201304,"7,731.20",Survey Response Incentive Vouchers,Large,Programme Expenditure,,
UK Statistics Family,Office for National Statistics,13/05/2021,Exp - Purchase Of Goods/Services - Incentive Payments,Survey Management,P & Mm Ltd,201304,"4,233.20",Survey Response Incentive Vouchers,Large,Programme Expenditure,,
UK Statistics Family,Office for National Statistics,13/05/2021,Exp - Purchase Of Goods/Services - Incentive Payments,Survey Management,P & Mm Ltd,201304,"6,466.00",Survey Response Incentive Vouchers,Large,Programme Expenditure,,
UK Statistics Family,Office for National Statistics,13/05/2021,Exp - Purchase Of Goods/Services - Incentive Payments,Survey Management,P & Mm Ltd,201304,"216,090.00",Survey Response Incentive Vouchers,Large,Programme Expenditure,,
UK Statistics Family,Office for National Statistics,13/05/2021,Exp - Purchase Of Goods/Services - Incentive Payments,Social Survey Transformation Newport,P & Mm Ltd,201304,"388,818.80",Survey Response Incentive Vouchers,Large,Programme Expenditure,,
UK Statistics Family,Office for National Statistics,13/05/2021,Exp - Purchase Of Goods/Services - Incentive Payments,Survey Management,P & Mm Ltd,201304,"25,034.60",Survey Response Incentive Vouchers,Large,Programme Expenditure,,Karla to confirm what his is 
UK Statistics Family,Office for National Statistics,13/05/2021,Exp - Purchase Of Goods/Services - Incentive Payments,Survey Management,P & Mm Ltd,201304,"6,585.60",Survey Response Incentive Vouchers,Large,Programme Expenditure,,
UK Statistics Family,Office for National Statistics,13/05/2021,Exp - Purchase Of Goods/Services - Incentive Payments,Survey Management,P & Mm Ltd,201304,"1,992.80",Survey Response Incentive Vouchers,Large,Programme Expenditure,,
UK Statistics Family,Office for National Statistics,13/05/2021,Exp - Purchase Of Goods/Services - Incentive Payments,Survey Management,P & Mm Ltd,201304,"3,996.20",Survey Response Incentive Vouchers,Large,Programme Expenditure,,
UK Statistics Family,Office for National Statistics,13/05/2021,Exp - Purchase Of Goods/Services - Incentive Payments,Survey Management,P & Mm Ltd,201304,"154,088.60",Survey Response Incentive Vouchers,Large,Programme Expenditure,,
UK Statistics Family,Office for National Statistics,13/05/2021,Exp - Purchase Of Goods/Services - Incentive Payments,Census & Soc Methodology Dd,P & Mm Ltd,201304,"1,082.40",Survey Response Incentive Vouchers,Large,Programme Expenditure,,
UK Statistics Family,Office for National Statistics,13/05/2021,Exp - Short-Term Contract & Agency Staff - Full Cost,Census CCS Data Collection,Concept Information Technology Ltd T/A Concept Resourcing,201306,"11,514.14",Information Management Services,Large,Programme Expenditure,,
UK Statistics Family,Office for National Statistics,13/05/2021,Exp - Short-Term Contract & Agency Staff - Full Cost,Census CCS Data Collection,Concept Information Technology Ltd T/A Concept Resourcing,201306,"2,152.66",Information Management Services,Large,Programme Expenditure,,
UK Statistics Family,Office for National Statistics,13/05/2021,Exp - Short-Term Contract & Agency Staff - Full Cost,Business Change Support,Concept Information Technology Ltd T/A Concept Resourcing,201306,"4,030.04",Information Management Services,Large,Programme Expenditure,,
UK Statistics Family,Office for National Statistics,13/05/2021,Exp - Short-Term Contract & Agency Staff - Full Cost,Business Change Support,Concept Information Technology Ltd T/A Concept Resourcing,201306,"6,449.83",Information Management Services,Large,Programme Expenditure,,
UK Statistics Family,Office for National Statistics,13/05/2021,Exp - Short-Term Contract & Agency Staff - Full Cost,Business Change Support,Concept Information Technology Ltd T/A Concept Resourcing,201306,"8,518.04",Information Management Services,Large,Programme Expenditure,,
UK Statistics Family,Office for National Statistics,13/05/2021,Exp - Short-Term Contract & Agency Staff - Full Cost,Business Change Support,Concept Information Technology Ltd T/A Concept Resourcing,201306,"3,626.77",Information Management Services,Large,Programme Expenditure,,
UK Statistics Family,Office for National Statistics,13/05/2021,Exp - Short-Term Contract & Agency Staff - Full Cost,Business Change Support,Concept Information Technology Ltd T/A Concept Resourcing,201306,"2,513.39",Information Management Services,Large,Programme Expenditure,,
UK Statistics Family,Office for National Statistics,13/05/2021,Exp - Short-Term Contract & Agency Staff - Full Cost,International Trade And Transactions,Concept Information Technology Ltd T/A Concept Resourcing,201306,"4,833.83",Information Management Services,Large,Programme Expenditure,,
UK Statistics Family,Office for National Statistics,13/05/2021,Exp - Short-Term Contract & Agency Staff - Full Cost,International Trade And Transactions,Concept Information Technology Ltd T/A Concept Resourcing,201306,805.95,Information Management Services,Large,Programme Expenditure,,
UK Statistics Family,Office for National Statistics,13/05/2021,Exp - Purchase Of Goods/Services - IT Contractual Services,Strategy And Architecture,Medley Business Solutions Ltd,201307,"11,404.80",Information Management Services,Large,Programme Expenditure,,
UK Statistics Family,Office for National Statistics,13/05/2021,Exp - Purchase Of Goods/Services - IT Contractual Services,Strategy And Architecture,Medley Business Solutions Ltd,201307,"17,107.20",Information Management Services,Large,Programme Expenditure,,
UK Statistics Family,Office for National Statistics,13/05/2021,Exp - Purchase Of Goods/Services - Contractors,Testing,Certes Computing Ltd,201309,"11,785.20",Information Management Services,SME,Programme Expenditure,,
UK Statistics Family,Office for National Statistics,13/05/2021,Exp - Purchase Of Goods/Services - Contractors,Security Advisory,Certes Computing Ltd,201309,"19,151.09",Information Management Services,SME,Programme Expenditure,,
UK Statistics Family,Office for National Statistics,13/05/2021,Exp - Purchase Of Goods/Services - Contractors,Strategy And Architecture,Certes Computing Ltd,201309,"6,917.40",Information Management Services,SME,Programme Expenditure,,
UK Statistics Family,Office for National Statistics,13/05/2021,Exp - Purchase Of Goods/Services - Contractors,IT Applications,Certes Computing Ltd,201309,15838.42,Information Management Services,SME,Programme Expenditure,,
UK Statistics Family,Office for National Statistics,13/05/2021,Exp - Purchase Of Goods/Services - Contractors,Digital Delivery,Certes Computing Ltd,201309,"15,468.14",Information Management Services,SME,Programme Expenditure,,
UK Statistics Family,Office for National Statistics,13/05/2021,Exp - Purchase Of Goods/Services - Contractors,Testing,La International,201310,"15,199.08",Information Management Services,SME,Programme Expenditure,,
UK Statistics Family,Office for National Statistics,13/05/2021,Exp - Purchase Of Goods/Services - Contractors,Testing,La International,201310,"1,815.52",Information Management Services,SME,Programme Expenditure,,
UK Statistics Family,Office for National Statistics,13/05/2021,Exp - Purchase Of Goods/Services - Contractors,HALE,La International,201310,"2,413.75",Information Management Services,SME,Programme Expenditure,,
UK Statistics Family,Office for National Statistics,13/05/2021,Exp - Purchase Of Goods/Services - Contractors,Business Architecture Transformation And Statistical Strategy,La International,201310,"4,100.92",Information Management Services,SME,Programme Expenditure,,
UK Statistics Family,Office for National Statistics,13/05/2021,Exp - Purchase Of Goods/Services - Contractors,Security Advisory,La International,201310,"6,247.53",Information Management Services,SME,Programme Expenditure,,
UK Statistics Family,Office for National Statistics,13/05/2021,Exp - Purchase Of Goods/Services - Contractors,Data Architecture,La International,201310,"10,572.72",Information Management Services,SME,Programme Expenditure,,
UK Statistics Family,Office for National Statistics,13/05/2021,Exp - Short-Term Contract & Agency Staff - Full Cost,Social Survey Transformation Titchfield,La International,201310,"1,554.00",Information Management Services,SME,Programme Expenditure,,
UK Statistics Family,Office for National Statistics,13/05/2021,Exp - Purchase Of Goods And Services Consultants,Consultancy Management,Deloitte,201312,"55,228.80",Consultancy,Large,Programme Expenditure,,
UK Statistics Family,Office for National Statistics,13/05/2021,Exp - Purchase Of Goods/Services - Contractors,Testing,Malikshaw Interim & Executive,201316,"43,541.08",Information Management Services,SME,Programme Expenditure,,
UK Statistics Family,Office for National Statistics,13/05/2021,Exp - Short-Term Contract & Agency Staff - Full Cost,Census CCS Data Collection,Malikshaw Interim & Executive,201316,"8,342.46",Information Management Services,SME,Programme Expenditure,,
UK Statistics Family,Office for National Statistics,13/05/2021,Exp - Short-Term Contract & Agency Staff - Full Cost,Census CCS Data Collection,Malikshaw Interim & Executive,201316,"16,374.33",Information Management Services,SME,Programme Expenditure,,
UK Statistics Family,Office for National Statistics,13/05/2021,Exp - Purchase Of Goods/Services - Contractors,Programme Support,Malikshaw Interim & Executive,201316,"10,705.40",Information Management Services,SME,Programme Expenditure,,
UK Statistics Family,Office for National Statistics,13/05/2021,Exp - Purchase Of Goods/Services - Contractors,Data Architecture,Malikshaw Interim & Executive,201316,"14,400.00",Information Management Services,SME,Programme Expenditure,,
UK Statistics Family,Office for National Statistics,13/05/2021,Exp - Purchase Of Goods/Services - Contractors,Data Architecture,Malikshaw Interim & Executive,201316,"13,769.52",Information Management Services,SME,Programme Expenditure,,
UK Statistics Family,Office for National Statistics,13/05/2021,Exp - Purchase Of Goods/Services - Contractors,Strategy And Architecture,Malikshaw Interim & Executive,201316,"15,432.00",Information Management Services,SME,Programme Expenditure,,
UK Statistics Family,Office for National Statistics,13/05/2021,Exp - Purchase Of Goods/Services - Contractors,Strategy And Architecture,Malikshaw Interim & Executive,201316,"13,751.52",Information Management Services,SME,Programme Expenditure,,
UK Statistics Family,Office for National Statistics,13/05/2021,Exp - Purchase Of Goods/Services - Contractors,Tech Delivery Legacy Sp,Malikshaw Interim & Executive,201316,"14,400.00",Information Management Services,SME,Programme Expenditure,,
UK Statistics Family,Office for National Statistics,13/05/2021,Exp - Purchase Of Goods/Services - Contractors,Tech Delivery Legacy Sp,Malikshaw Interim & Executive,201316,"13,751.52",Information Management Services,SME,Programme Expenditure,,
UK Statistics Family,Office for National Statistics,13/05/2021,Exp - Purchase Of Goods/Services - Contractors,Data As A Service,Malikshaw Interim & Executive,201316,"13,751.52",Information Management Services,SME,Programme Expenditure,,
UK Statistics Family,Office for National Statistics,13/05/2021,Hosting,IT Operations,CTS (Cloud Technology Solutions Ltd),201317,"349,794.83",DST Infrastructure Preparation,Large,Programme Expenditure,,
UK Statistics Family,Office for National Statistics,13/05/2021,Exp - Purchase Of Goods/Services - Contractors,DST Legacy,LA FOSSE ASSOCIATES LIMITED,201321,"7,200.00",Information Management Services,Large,Programme Expenditure,,
UK Statistics Family,Office for National Statistics,13/05/2021,Exp - Purchase Of Goods/Services - Contractors,Business Architecture,LA FOSSE ASSOCIATES LIMITED,201321,"4,050.00",Information Management Services,Large,Programme Expenditure,,
UK Statistics Family,Office for National Statistics,13/05/2021,Exp - Purchase Of Goods/Services - Contractors,Digital Publishing,LA FOSSE ASSOCIATES LIMITED,201321,"17,280.00",Information Management Services,Large,Programme Expenditure,,
UK Statistics Family,Office for National Statistics,13/05/2021,Marketing & Media,Stakeholder Engagement And Comms,M&C Saatchi UK Ltd,201323,"360,938.51",Marketing Services,Large,Programme Expenditure,,
UK Statistics Family,Office for National Statistics,14/05/2021,Surveys,International Trade And Transactions,Mango Solutions,201449,"15,504.00",Information Management Services,SME,Programme Expenditure,,
UK Statistics Family,Office for National Statistics,14/05/2021,Surveys,International Trade And Transactions,Mango Solutions,201449,"43,248.00",Information Management Services,SME,Programme Expenditure,,
UK Statistics Family,Office for National Statistics,14/05/2021,Stationery,Lodgecard,Royal Bank of Scotland,201455,878.94,Multiple Procurement Card Purchases  - Stationery ,Large,Programme Expenditure,,
UK Statistics Family,Office for National Statistics,14/05/2021,Other Goods And Services,GPC,Royal Bank of Scotland,201455,"35,380.29",Multiple Procurement Card Purchases - other goods/services  ,Large,Programme Expenditure,,
UK Statistics Family,Office for National Statistics,14/05/2021,Travel And Subsistence,Car Hire,Royal Bank of Scotland,201455,"7,551.68",Multiple Procurement Card Purchases - Vehicle Hire  ,Large,Programme Expenditure,,
UK Statistics Family,Office for National Statistics,14/05/2021,"ICT Outsourcing, Maintenance And Support",Senior Management Team Design,Totalmobile Ltd,201456,"379,273.20",Information Management Services,SME,Programme Expenditure,,
UK Statistics Family,Office for National Statistics,14/05/2021,Exp - Short-Term Contract & Agency Staff - Full Cost,Census CCS Data Collection,Malikshaw Interim & Executive,201458,"3,567.04",Information Management Services,SME,Programme Expenditure,,
UK Statistics Family,Office for National Statistics,14/05/2021,Exp - Short-Term Contract & Agency Staff - Full Cost,Census CCS Data Collection,Malikshaw Interim & Executive,201458,52347.62,Information Management Services,SME,Programme Expenditure,,
UK Statistics Family,Office for National Statistics,14/05/2021,Exp - Short-Term Contract & Agency Staff - Full Cost,Census CCS Data Collection,Malikshaw Interim & Executive,201458,"57,868.74",Information Management Services,SME,Programme Expenditure,,
UK Statistics Family,Office for National Statistics,14/05/2021,Exp - Short-Term Contract & Agency Staff - Full Cost,Data Architecture,Malikshaw Interim & Executive,201458,"6,739.92",Information Management Services,SME,Programme Expenditure,,
UK Statistics Family,Office for National Statistics,14/05/2021,Exp - Short-Term Contract & Agency Staff - Full Cost,Survey Management,Malikshaw Interim & Executive,201458,110.64,Information Management Services,SME,Programme Expenditure,,
UK Statistics Family,Office for National Statistics,14/05/2021,Exp - Short-Term Contract & Agency Staff - Full Cost,Social Survey Transformation Titchfield,Malikshaw Interim & Executive,201458,"2,369.90",Information Management Services,SME,Programme Expenditure,,
UK Statistics Family,Office for National Statistics,14/05/2021,Exp - Purchase Of Goods/Services - IT Contractual Services,IT Operations,CTS (Cloud Technology Solutions Ltd),201459,"130,964.40",DST Infrastructure Preparation,Large,Programme Expenditure,,
UK Statistics Family,Office for National Statistics,14/05/2021,Exp - Purchase Of Goods/Services - IT Contractual Services,Learning And Capability,Synergy Learning,201460,25560,Information Management Services,Small,Programme Expenditure,,
UK Statistics Family,Office for National Statistics,14/05/2021,Exp - Purchase Of Goods/Services - Contractors,Business Architecture,LA FOSSE ASSOCIATES LIMITED,201464,"28,279.94",Information Management Services,Large,Programme Expenditure,,
UK Statistics Family,Office for National Statistics,14/05/2021,Exp - Purchase Of Goods/Services - Contractors,Business Architecture,LA FOSSE ASSOCIATES LIMITED,201464,"2,750.00",Information Management Services,Large,Programme Expenditure,,
UK Statistics Family,Office for National Statistics,14/05/2021,Exp - Purchase Of Goods/Services - Contractors,Testing,LA FOSSE ASSOCIATES LIMITED,201464,"3,000.00",Information Management Services,Large,Programme Expenditure,,
UK Statistics Family,Office for National Statistics,14/05/2021,Exp - Purchase Of Goods/Services - Contractors,Operations,LA FOSSE ASSOCIATES LIMITED,201464,"3,300.00",Information Management Services,Large,Programme Expenditure,,
UK Statistics Family,Office for National Statistics,14/05/2021,Exp - Purchase Of Goods/Services - Contractors,Consultancy Management,LA FOSSE ASSOCIATES LIMITED,201464,"6,450.00",Information Management Services,Large,Programme Expenditure,,
UK Statistics Family,Office for National Statistics,14/05/2021,Exp - Purchase Of Goods/Services - Contractors,Programme Support,LA FOSSE ASSOCIATES LIMITED,201464,"3,000.00",Information Management Services,Large,Programme Expenditure,,
UK Statistics Family,Office for National Statistics,14/05/2021,Exp - Purchase Of Goods/Services - Contractors,Programme Support,LA FOSSE ASSOCIATES LIMITED,201464,"2,750.00",Information Management Services,Large,Programme Expenditure,,
UK Statistics Family,Office for National Statistics,14/05/2021,Exp - Purchase Of Goods/Services - Contractors,Researcher Support And Data Access ,LA FOSSE ASSOCIATES LIMITED,201464,"3,150.00",Information Management Services,Large,Programme Expenditure,,
UK Statistics Family,Office for National Statistics,14/05/2021,Exp - Purchase Of Goods/Services - Contractors,Data Architecture,LA FOSSE ASSOCIATES LIMITED,201464,"4,050.00",Information Management Services,Large,Programme Expenditure,,
UK Statistics Family,Office for National Statistics,14/05/2021,Exp - Purchase Of Goods/Services - Contractors,Tech Delivery Legacy Sp,LA FOSSE ASSOCIATES LIMITED,201464,"3,600.00",Information Management Services,Large,Programme Expenditure,,
UK Statistics Family,Office for National Statistics,14/05/2021,Exp - Purchase Of Goods/Services - Contractors,Tech Delivery Legacy Sp,LA FOSSE ASSOCIATES LIMITED,201464,"3,600.00",Information Management Services,Large,Programme Expenditure,,
UK Statistics Family,Office for National Statistics,14/05/2021,Exp - Purchase Of Goods/Services - Contractors,IT Applications,LA FOSSE ASSOCIATES LIMITED,201464,"3,600.00",Information Management Services,Large,Programme Expenditure,,
UK Statistics Family,Office for National Statistics,14/05/2021,Marketing & Media,Stakeholder Engagement And Comms,M&C Saatchi UK Ltd,201466,"60,703.13",Marketing Services,Large,Programme Expenditure,,
UK Statistics Family,Office for National Statistics,17/05/2021,Exp - Purchase Of Goods/Services - Contractors,2023 CENSUS DATA TRANSFORMATION,Talent International,201473,"15,799.32",Information Management Services,SME,Programme Expenditure,,
UK Statistics Family,Office for National Statistics,17/05/2021,Exp - Short-Term Contract & Agency Staff - Full Cost,Census CCS Data Collection,Talent International,201473,"28,416.07",Information Management Services,SME,Programme Expenditure,,
UK Statistics Family,Office for National Statistics,17/05/2021,Exp - Short-Term Contract & Agency Staff - Full Cost,Census CCS Data Collection,Talent International,201473,43847.86,Information Management Services,SME,Programme Expenditure,,
UK Statistics Family,Office for National Statistics,17/05/2021,Exp - Short-Term Contract & Agency Staff - Full Cost,HALE,Talent International,201473,"3,629.99",Information Management Services,SME,Programme Expenditure,,
UK Statistics Family,Office for National Statistics,17/05/2021,Exp - Short-Term Contract & Agency Staff - Full Cost,Strategy And Engagement,Talent International,201473,"1,906.90",Information Management Services,SME,Programme Expenditure,,
UK Statistics Family,Office for National Statistics,17/05/2021,Exp - Purchase Of Goods/Services - Contractors,Finance,Talent International,201473,"15,180.00",Information Management Services,SME,Programme Expenditure,,
UK Statistics Family,Office for National Statistics,17/05/2021,Exp - Purchase Of Goods/Services - Contractors,CLOUD ARCHITECTURE,Talent International,201473,"16,380.00",Information Management Services,SME,Programme Expenditure,,
UK Statistics Family,Office for National Statistics,17/05/2021,Exp - Purchase Of Goods/Services - Contractors,IT Applications,Talent International,201473,"17,940.00",Information Management Services,SME,Programme Expenditure,,
UK Statistics Family,Office for National Statistics,17/05/2021,Exp - Short-Term Contract & Agency Staff - Full Cost,Interviewer Management TU,Talent International,201473,996.6,Information Management Services,SME,Programme Expenditure,,
UK Statistics Family,Office for National Statistics,17/05/2021,Exp - Short-Term Contract & Agency Staff - Full Cost,Social Surveys Division,Talent International,201473,4661.29,Information Management Services,SME,Programme Expenditure,,
UK Statistics Family,Office for National Statistics,17/05/2021,Marketing & Media,Stakeholder Engagement And Comms,M&C Saatchi UK Ltd,201476,"308,488.23",Marketing Services,Large,Programme Expenditure,,
UK Statistics Family,Office for National Statistics,17/05/2021,FM Contract Payments,Vinci Payments,Vinci Construction UK Limited,201478,"83,050.37",Facilities Mangement Services,Large,Programme Expenditure,,
UK Statistics Family,Office for National Statistics,17/05/2021,Exp - Purchase Of Goods/Services - Contractors,Data Architecture,Empiric Solutions Limited,201479,"12,750.00",Information Management Services,Large,Programme Expenditure,,
UK Statistics Family,Office for National Statistics,17/05/2021,Exp - Purchase Of Goods/Services - Contractors,IT Applications,Empiric Solutions Limited,201479,"19,200.00",Information Management Services,Large,Programme Expenditure,,
UK Statistics Family,Office for National Statistics,17/05/2021,Exp - Purchase Of Goods And Services Consultants,Productivity Research And Professional Development,Niesr,201481,"70,258.20",Statistical Services,SME,Programme Expenditure,,
UK Statistics Family,Office for National Statistics,17/05/2021,Capital Major Works >25K,Property Titchfield,Central Roofing Ltd,201482,"144,520.99",Buildings Maintenance,SME,Programme Expenditure,,
UK Statistics Family,Office for National Statistics,17/05/2021,Exp - Purchase Of Goods/Services - Contractors,Strategy And Architecture,Certes Computing Ltd,201483,"2,305.80",Information Management Services,SME,Programme Expenditure,,
UK Statistics Family,Office for National Statistics,17/05/2021,Exp - Purchase Of Goods/Services - Contractors,Strategy And Architecture,Certes Computing Ltd,201483,"15,372.00",Information Management Services,SME,Programme Expenditure,,
UK Statistics Family,Office for National Statistics,17/05/2021,Exp - Purchase Of Goods/Services - Contractors,Digital Delivery,Certes Computing Ltd,201483,"15,838.42",Information Management Services,SME,Programme Expenditure,,
UK Statistics Family,Office for National Statistics,17/05/2021,Exp - Purchase Of Goods/Services - Contractors,Digital Delivery,Certes Computing Ltd,201483,"18,414.44",Information Management Services,SME,Programme Expenditure,,
UK Statistics Family,Office for National Statistics,17/05/2021,EXP - PURCHASE OF GOODS/SERVICES -  NON IT CONTRACTUAL PAYMENTS,Data Collection Service,Leidos Innovations UK Limited,201488,"5,697,340.18",Questionnaire Management,Large,Programme Expenditure,,
UK Statistics Family,Office for National Statistics,18/05/2021,Surveys,Interview Management IPS,Nisra,201595,"102,000.00",Statistical Services,Large,Programme Expenditure,,
UK Statistics Family,Office for National Statistics,18/05/2021,Exp - Purchase Of Goods/Services - Contractors,Testing,Certes Computing Ltd,201598,"3,330.60",Information Management Services,SME,Programme Expenditure,,
UK Statistics Family,Office for National Statistics,18/05/2021,Exp - Purchase Of Goods/Services - Contractors,Security Advisory,Certes Computing Ltd,201598,"22,097.39",Information Management Services,SME,Programme Expenditure,,
UK Statistics Family,Office for National Statistics,18/05/2021,Exp - Purchase Of Goods/Services - Contractors,MDR Management,Certes Computing Ltd,201598,"6,839.32",Information Management Services,SME,Programme Expenditure,,
UK Statistics Family,Office for National Statistics,18/05/2021,Exp - Purchase Of Goods/Services - Contractors,Data Architecture,Certes Computing Ltd,201598,"2,421.11",Information Management Services,SME,Programme Expenditure,,
UK Statistics Family,Office for National Statistics,18/05/2021,Exp - Purchase Of Goods/Services - Contractors,Digital Delivery,Certes Computing Ltd,201598,"15,115.20",Information Management Services,SME,Programme Expenditure,,
UK Statistics Family,Office for National Statistics,18/05/2021,Exp - Purchase Of Goods/Services - Contractors,Data As A Service,Certes Computing Ltd,201598,"20,903.61",Information Management Services,SME,Programme Expenditure,,
UK Statistics Family,Office for National Statistics,18/05/2021,Print and Post,Survey Processing Centre,APS Group,201603,"5,339.52",Mailing Services,Large,Programme Expenditure,,
UK Statistics Family,Office for National Statistics,18/05/2021,Print and Post,Social Survey Transformation Newport,APS Group,201603,"507,592.41",Mailing Services,Large,Programme Expenditure,,
UK Statistics Family,Office for National Statistics,18/05/2021,Exp - Short-Term Contract & Agency Staff - Full Cost,Data Architecture,Malikshaw Interim & Executive,201606,732.6,Information Management Services,SME,Programme Expenditure,,
UK Statistics Family,Office for National Statistics,18/05/2021,Exp - Purchase Of Goods/Services - Contractors,Data Architecture,Malikshaw Interim & Executive,201606,"19,402.80",Information Management Services,SME,Programme Expenditure,,
UK Statistics Family,Office for National Statistics,18/05/2021,Exp - Purchase Of Goods/Services - Contractors,Data Science Campus,Malikshaw Interim & Executive,201606,"11,514.00",Information Management Services,SME,Programme Expenditure,,
UK Statistics Family,Office for National Statistics,18/05/2021,Exp - Purchase Of Goods/Services - Contractors,Data As A Service,Malikshaw Interim & Executive,201606,843.6,Information Management Services,SME,Programme Expenditure,,
UK Statistics Family,Office for National Statistics,18/05/2021,Exp - Purchase Of Goods/Services - Contractors,Business Architecture,Talent International,201613,"12,873.00",Information Management Services,SME,Programme Expenditure,,
UK Statistics Family,Office for National Statistics,18/05/2021,Exp - Short-Term Contract & Agency Staff - Full Cost,Census CCS Data Collection,Talent International,201613,"7,412.51",Information Management Services,SME,Programme Expenditure,,
UK Statistics Family,Office for National Statistics,18/05/2021,Exp - Purchase Of Goods/Services - Contractors,Programme Support,Talent International,201613,"1,650.00",Information Management Services,SME,Programme Expenditure,,
UK Statistics Family,Office for National Statistics,18/05/2021,Exp - Purchase Of Goods/Services - Contractors,Researcher Support And Data Access ,Talent International,201613,"17,940.00",Information Management Services,SME,Programme Expenditure,,
UK Statistics Family,Office for National Statistics,18/05/2021,Exp - Purchase Of Goods/Services - Contractors,MDR Management,Talent International,201613,"6,600.00",Information Management Services,SME,Programme Expenditure,,
UK Statistics Family,Office for National Statistics,18/05/2021,Exp - Purchase Of Goods/Services - Contractors,Data Architecture,Talent International,201613,"1,980.00",Information Management Services,SME,Programme Expenditure,,
UK Statistics Family,Office for National Statistics,18/05/2021,Exp - Purchase Of Goods/Services - Contractors,Data Architecture,Talent International,201613,"2,412.00",Information Management Services,SME,Programme Expenditure,,
UK Statistics Family,Office for National Statistics,18/05/2021,Exp - Purchase Of Goods/Services - Contractors,Data Architecture,Talent International,201613,"13,200.00",Information Management Services,SME,Programme Expenditure,,
UK Statistics Family,Office for National Statistics,18/05/2021,Exp - Purchase Of Goods/Services - Contractors,Data Architecture,Talent International,201613,660,Information Management Services,SME,Programme Expenditure,,
UK Statistics Family,Office for National Statistics,18/05/2021,Exp - Purchase Of Goods/Services - Contractors,Strategy And Architecture,Talent International,201613,"9,600.00",Information Management Services,SME,Programme Expenditure,,
UK Statistics Family,Office for National Statistics,18/05/2021,Exp - Purchase Of Goods/Services - Contractors,Tech Delivery Legacy Sp,Talent International,201613,"16,559.72",Information Management Services,SME,Programme Expenditure,,
UK Statistics Family,Office for National Statistics,18/05/2021,Exp - Purchase Of Goods/Services - Contractors,Tech Delivery Legacy Sp,Talent International,201613,"17,940.00",Information Management Services,SME,Programme Expenditure,,
UK Statistics Family,Office for National Statistics,18/05/2021,Exp - Purchase Of Goods/Services - Contractors,Tech Delivery Data As A Platform,Talent International,201613,"16,559.72",Information Management Services,SME,Programme Expenditure,,
UK Statistics Family,Office for National Statistics,18/05/2021,Exp - Purchase Of Goods/Services - Contractors,Digital Delivery,Talent International,201613,"13,910.40",Information Management Services,SME,Programme Expenditure,,
UK Statistics Family,Office for National Statistics,18/05/2021,Exp - Short-Term Contract & Agency Staff - Full Cost,Labour Market,Talent International,201613,"4,881.76",Information Management Services,SME,Programme Expenditure,,
UK Statistics Family,Office for National Statistics,18/05/2021,EXP - PURCHASE OF GOODS/SERVICES -  NON IT CONTRACTUAL PAYMENTS,Divisional Management,Talent International,201613,"3,056.83",Information Management Services,SME,Programme Expenditure,,
UK Statistics Family,Office for National Statistics,19/05/2021,Exp - Short-Term Contract & Agency Staff - Full Cost,Census CCS Data Collection,Talent International,201849,"4,040.12",Information Management Services,SME,Programme Expenditure,,
UK Statistics Family,Office for National Statistics,19/05/2021,Exp - Short-Term Contract & Agency Staff - Full Cost,HALE,Talent International,201849,"3,608.76",Information Management Services,SME,Programme Expenditure,,
UK Statistics Family,Office for National Statistics,19/05/2021,Exp - Purchase Of Goods/Services - Contractors,Digital Publishing,Talent International,201849,"17,940.00",Information Management Services,SME,Programme Expenditure,,
UK Statistics Family,Office for National Statistics,19/05/2021,EXP - PURCHASE OF GOODS/SERVICES -  NON IT CONTRACTUAL PAYMENTS,Productivity Research And Professional Development,Talent International,201849,"10,200.00",Information Management Services,SME,Programme Expenditure,,
UK Statistics Family,Office for National Statistics,19/05/2021,Exp - Purchase Of Goods And Services Consultants,Digital Delivery,Xma Limited,201853,"11,340.00",Costs Associated with Mobile Devices,Large,Programme Expenditure,,
UK Statistics Family,Office for National Statistics,19/05/2021,Exp - Purchase Of Goods/Services - IT Contractual Services,Digital Delivery,Xma Limited,201853,"40,332.00",Costs Associated with Mobile Devices,Large,Programme Expenditure,,
UK Statistics Family,Office for National Statistics,19/05/2021,Other Goods And Services,Digital Delivery,Xma Limited,201853,192.19,Costs Associated with Mobile Devices,Large,Programme Expenditure,,
UK Statistics Family,Office for National Statistics,19/05/2021,Exp - Purchase Of Goods/Services - Contractors,Security Advisory,Certes Computing Ltd,201859,"16,653.12",Information Management Services,SME,Programme Expenditure,,
UK Statistics Family,Office for National Statistics,19/05/2021,Exp - Purchase Of Goods/Services - Contractors,Data Architecture,Certes Computing Ltd,201859,"1,439.86",Information Management Services,SME,Programme Expenditure,,
UK Statistics Family,Office for National Statistics,19/05/2021,Exp - Purchase Of Goods/Services - Contractors,Data Architecture,Certes Computing Ltd,201859,"13,678.63",Information Management Services,SME,Programme Expenditure,,
UK Statistics Family,Office for National Statistics,19/05/2021,Exp - Purchase Of Goods/Services - Contractors,CLOUD ARCHITECTURE,Certes Computing Ltd,201859,"25,363.80",Information Management Services,SME,Programme Expenditure,,
UK Statistics Family,Office for National Statistics,19/05/2021,Exp - Purchase Of Goods/Services - Contractors,Tech Delivery Legacy Sp,Certes Computing Ltd,201859,"15,468.14",Information Management Services,SME,Programme Expenditure,,
UK Statistics Family,Office for National Statistics,19/05/2021,Exp - Purchase Of Goods/Services - Contractors,IT Applications,Certes Computing Ltd,201859,"16,204.79",Information Management Services,SME,Programme Expenditure,,
UK Statistics Family,Office for National Statistics,19/05/2021,Exp - Purchase Of Goods/Services - Contractors,Business Architecture,La International,201860,"3,588.30",Information Management Services,SME,Programme Expenditure,,
UK Statistics Family,Office for National Statistics,19/05/2021,Exp - Short-Term Contract & Agency Staff - Full Cost,Census CCS Data Collection,La International,201860,"1,230.77",Information Management Services,SME,Programme Expenditure,,
UK Statistics Family,Office for National Statistics,19/05/2021,Exp - Purchase Of Goods/Services - Contractors,Sustainability And Inequalities,La International,201860,"4,735.36",Information Management Services,SME,Programme Expenditure,,
UK Statistics Family,Office for National Statistics,19/05/2021,Exp - Purchase Of Goods And Services Consultants,Security Operations,La International,201860,"6,407.76",Information Management Services,SME,Programme Expenditure,,
UK Statistics Family,Office for National Statistics,19/05/2021,Exp - Purchase Of Goods/Services - Contractors,Data Architecture,La International,201860,"3,588.30",Information Management Services,SME,Programme Expenditure,,
UK Statistics Family,Office for National Statistics,19/05/2021,Exp - Purchase Of Goods/Services - Contractors,Data Architecture,La International,201860,"2,306.78",Information Management Services,SME,Programme Expenditure,,
UK Statistics Family,Office for National Statistics,19/05/2021,Exp - Purchase Of Goods/Services - Contractors,Data Architecture,La International,201860,768.92,Information Management Services,SME,Programme Expenditure,,
UK Statistics Family,Office for National Statistics,19/05/2021,Exp - Purchase Of Goods/Services - Contractors,Tech Delivery Legacy Sp,La International,201860,"11,662.10",Information Management Services,SME,Programme Expenditure,,
UK Statistics Family,Office for National Statistics,19/05/2021,Exp - Purchase Of Goods/Services - Contractors,Tech Delivery Data As A Platform,La International,201860,"3,203.88",Information Management Services,SME,Programme Expenditure,,
UK Statistics Family,Office for National Statistics,19/05/2021,Exp - Purchase Of Goods/Services - Contractors,IT Applications,La International,201860,"16,865.18",Information Management Services,SME,Programme Expenditure,,
UK Statistics Family,Office for National Statistics,19/05/2021,Exp - Purchase Of Goods/Services - IT Contractual Services,Office Of Chief Data And Information,Akamai Technologies Limited,201866,"36,200.00",Information Management Services,SME,Programme Expenditure,,
UK Statistics Family,Office for National Statistics,19/05/2021,Marketing & Media,Stakeholder Engagement And Comms,M&C Saatchi UK Ltd,201867,"21,351.84",Marketing Services,Large,Programme Expenditure,,
UK Statistics Family,Office for National Statistics,19/05/2021,Marketing & Media,Data Collection Service,M&C Saatchi UK Ltd,201867,"142,508.94",Marketing Services,Large,Programme Expenditure,,
UK Statistics Family,Office for National Statistics,19/05/2021,IT (Owned) At Cost - Additions,IT Operations,Insight Direct,201869,"400,123.20",Software Licenses,Large,Programme Expenditure,,
UK Statistics Family,Office for National Statistics,19/05/2021,Exp - Purchase Of Goods/Services - Contractors,Commercial Services,Gardiner & Theobald LLP,201870,"31,600.00",Temporary Staff,Large,Programme Expenditure,,
UK Statistics Family,Office for National Statistics,19/05/2021,Other Goods And Services,Commercial Services,Gardiner & Theobald LLP,201870,"9,200.00",Temporary Staff,Large,Programme Expenditure,,
UK Statistics Family,Office for National Statistics,19/05/2021,Exp - Permanent UK Staff - PRP Voucher Payments,ONS Corporate Funds,Edenred (UK Group) Limited,201871,41450,Performance Reward Vouchers,Large,Programme Expenditure,,
UK Statistics Family,Office for National Statistics,19/05/2021,Other Goods And Services,Policy Secretariat,Basis Social Research ,201873,"120,000.00",Statistical Services,SME,Programme Expenditure,,
UK Statistics Family,Office for National Statistics,19/05/2021,Exp - Purchase Of Goods/Services - Contractors,Testing,Malikshaw Interim & Executive,201878,"15,383.38",Information Management Services,SME,Programme Expenditure,,
UK Statistics Family,Office for National Statistics,19/05/2021,Exp - Short-Term Contract & Agency Staff - Full Cost,Census CCS Data Collection,Malikshaw Interim & Executive,201878,"2,930.40",Information Management Services,SME,Programme Expenditure,,
UK Statistics Family,Office for National Statistics,19/05/2021,Exp - Short-Term Contract & Agency Staff - Full Cost,Census CCS Data Collection,Malikshaw Interim & Executive,201878,"16,046.96",Information Management Services,SME,Programme Expenditure,,
UK Statistics Family,Office for National Statistics,19/05/2021,Exp - Short-Term Contract & Agency Staff - Full Cost,International Trade And Transactions,Malikshaw Interim & Executive,201878,3939.77,Information Management Services,SME,Programme Expenditure,,
UK Statistics Family,Office for National Statistics,19/05/2021,Exp - Purchase Of Goods/Services - Contractors,CLOUD ARCHITECTURE,Malikshaw Interim & Executive,201878,"27,417.60",Information Management Services,SME,Programme Expenditure,,
UK Statistics Family,Office for National Statistics,19/05/2021,Exp - Purchase Of Goods/Services - Contractors,Strategy And Architecture,Malikshaw Interim & Executive,201878,"6,875.76",Information Management Services,SME,Programme Expenditure,,
UK Statistics Family,Office for National Statistics,19/05/2021,Exp - Purchase Of Goods/Services - Contractors,Tech Delivery Legacy Sp,Malikshaw Interim & Executive,201878,"13,751.52",Information Management Services,SME,Programme Expenditure,,
UK Statistics Family,Office for National Statistics,19/05/2021,Exp - Short-Term Contract & Agency Staff - Full Cost,Survey Management,Malikshaw Interim & Executive,201878,"1,016.88",Information Management Services,SME,Programme Expenditure,,
UK Statistics Family,Office for National Statistics,19/05/2021,Exp - Purchase Of Goods/Services - IT Contractual Services,IT Operations,CTS (Cloud Technology Solutions Ltd),201880,"69,455.10",DST Infrastructure Preparation,Large,Programme Expenditure,,
UK Statistics Family,Office for National Statistics,19/05/2021,Hosting,IT Operations,CTS (Cloud Technology Solutions Ltd),201880,"85,933.43",DST Infrastructure Preparation,Large,Programme Expenditure,,
UK Statistics Family,Office for National Statistics,19/05/2021,"ICT Outsourcing, Maintenance And Support",Digital Delivery,Mitie Security,201884,"86,356.80",Software Licenses,Large,Programme Expenditure,,
UK Statistics Family,Office for National Statistics,21/05/2021,FM Contract Payments,Vinci Payments,Vinci Construction UK Limited,202053,"447,959.87",Facilities Mangement Services,Large,Programme Expenditure,,
UK Statistics Family,Office for National Statistics,21/05/2021,Hosting,Data Architecture,Esri (Uk) Ltd,202056,"78,000.00",Information Management Services,SME,Programme Expenditure,,
UK Statistics Family,Office for National Statistics,21/05/2021,Exp - Purchase Of Goods/Services - Contractors,Testing,La International,202061,"8,903.15",Information Management Services,SME,Programme Expenditure,,
UK Statistics Family,Office for National Statistics,21/05/2021,Exp - Short-Term Contract & Agency Staff - Full Cost,Census CCS Data Collection,La International,202061,"11,083.71",Information Management Services,SME,Programme Expenditure,,
UK Statistics Family,Office for National Statistics,21/05/2021,Exp - Purchase Of Goods And Services Consultants,Digital Publishing,La International,202061,"3,203.88",Information Management Services,SME,Programme Expenditure,,
UK Statistics Family,Office for National Statistics,21/05/2021,Exp - Purchase Of Goods/Services - Contractors,Security Advisory,La International,202061,"3,470.85",Information Management Services,SME,Programme Expenditure,,
UK Statistics Family,Office for National Statistics,21/05/2021,Exp - Purchase Of Goods/Services - Contractors,Data Architecture,La International,202061,"3,588.30",Information Management Services,SME,Programme Expenditure,,
UK Statistics Family,Office for National Statistics,21/05/2021,Exp - Purchase Of Goods/Services - Contractors,Data Architecture,La International,202061,"10,957.14",Information Management Services,SME,Programme Expenditure,,
UK Statistics Family,Office for National Statistics,21/05/2021,Exp - Purchase Of Goods/Services - Contractors,Data Architecture,La International,202061,"3,524.22",Information Management Services,SME,Programme Expenditure,,
UK Statistics Family,Office for National Statistics,21/05/2021,Exp - Purchase Of Goods/Services - Contractors,Tech Delivery Legacy Sp,La International,202061,"8,970.84",Information Management Services,SME,Programme Expenditure,,
UK Statistics Family,Office for National Statistics,21/05/2021,Exp - Purchase Of Goods/Services - Contractors,Tech Delivery Data As A Platform,La International,202061,"3,203.88",Information Management Services,SME,Programme Expenditure,,
UK Statistics Family,Office for National Statistics,21/05/2021,Exp - Purchase Of Goods/Services - Contractors,IT Applications,La International,202061,16070.52,Information Management Services,SME,Programme Expenditure,,
UK Statistics Family,Office for National Statistics,21/05/2021,Exp - Purchase Of Goods/Services - Contractors,Digital Delivery,La International,202061,"10,764.90",Information Management Services,SME,Programme Expenditure,,
UK Statistics Family,Office for National Statistics,21/05/2021,Exp - Purchase Of Goods/Services - Contractors,Digital Delivery,La International,202061,"25,118.10",Information Management Services,SME,Programme Expenditure,,
UK Statistics Family,Office for National Statistics,21/05/2021,Exp - Purchase Of Goods/Services - Contractors,Social Survey Transformation Titchfield,La International,202061,"7,404.40",Information Management Services,SME,Programme Expenditure,,
UK Statistics Family,Office for National Statistics,21/05/2021,Other Professional Services,Internal Audit,Pricewaterhousecoopers Llp,202063,"85,191.60",Consultancy,Large,Programme Expenditure,,
UK Statistics Family,Office for National Statistics,21/05/2021,Exp - Short-Term Contract & Agency Staff - Full Cost,Census CCS Data Collection,Malikshaw Interim & Executive,202068,"5,868.05",Information Management Services,SME,Programme Expenditure,,
UK Statistics Family,Office for National Statistics,21/05/2021,Exp - Short-Term Contract & Agency Staff - Full Cost,Census CCS Data Collection,Malikshaw Interim & Executive,202068,"3,556.78",Information Management Services,SME,Programme Expenditure,,
UK Statistics Family,Office for National Statistics,21/05/2021,Exp - Short-Term Contract & Agency Staff - Full Cost,Survey Management,Malikshaw Interim & Executive,202068,"5,571.90",Information Management Services,SME,Programme Expenditure,,
UK Statistics Family,Office for National Statistics,21/05/2021,Exp - Purchase Of Goods/Services - Contractors,Social Surveys Division,Malikshaw Interim & Executive,202068,"7,366.80",Information Management Services,SME,Programme Expenditure,,
UK Statistics Family,Office for National Statistics,21/05/2021,Exp - Short-Term Contract & Agency Staff - Full Cost,Divisional Management,Malikshaw Interim & Executive,202068,"4,292.59",Information Management Services,SME,Programme Expenditure,,
UK Statistics Family,Office for National Statistics,21/05/2021,"ICT Outsourcing, Maintenance And Support",IT Operations,CTS (Cloud Technology Solutions Ltd),202069,"36,074.86",DST Infrastructure Preparation,Large,Programme Expenditure,,
UK Statistics Family,Office for National Statistics,21/05/2021,EXP - PURCHASE OF GOODS/SERVICES -  NON IT CONTRACTUAL PAYMENTS,Data Collection Service,HH Associates Ltd,202070,"54,084.03",Print and Post Services,SME,Programme Expenditure,,
UK Statistics Family,Office for National Statistics,21/05/2021,Exp - Purchase Of Goods/Services - Contractors,Business Architecture,Parity Resources Limited,202073,"5,997.21",Information Management Services,Large,Programme Expenditure,,
UK Statistics Family,Office for National Statistics,21/05/2021,Exp - Purchase Of Goods/Services - Contractors,Testing,Parity Resources Limited,202073,"23,729.94",Information Management Services,Large,Programme Expenditure,,
UK Statistics Family,Office for National Statistics,21/05/2021,Exp - Short-Term Contract & Agency Staff - Full Cost,Census CCS Data Collection,Parity Resources Limited,202073,594,Information Management Services,Large,Programme Expenditure,,
UK Statistics Family,Office for National Statistics,21/05/2021,Exp - Purchase Of Goods/Services - Contractors,Programme Delivery,Parity Resources Limited,202073,"2,114.64",Information Management Services,Large,Programme Expenditure,,
UK Statistics Family,Office for National Statistics,21/05/2021,Exp - Purchase Of Goods/Services - Contractors,Programme Delivery,Parity Resources Limited,202073,"3,310.50",Information Management Services,Large,Programme Expenditure,,
UK Statistics Family,Office for National Statistics,21/05/2021,Exp - Purchase Of Goods/Services - Contractors,Programme Support,Parity Resources Limited,202073,"2,993.80",Information Management Services,Large,Programme Expenditure,,
UK Statistics Family,Office for National Statistics,21/05/2021,Exp - Purchase Of Goods/Services - Contractors,Analysis Microdata And Engagement,Parity Resources Limited,202073,"1,281.60",Information Management Services,Large,Programme Expenditure,,
UK Statistics Family,Office for National Statistics,21/05/2021,Exp - Purchase Of Goods/Services - Contractors,Researcher Support And Data Access ,Parity Resources Limited,202073,"3,008.22",Information Management Services,Large,Programme Expenditure,,
UK Statistics Family,Office for National Statistics,21/05/2021,Exp - Short-Term Contract & Agency Staff - Full Cost,Recruitment ,Parity Resources Limited,202073,732.6,Information Management Services,Large,Programme Expenditure,,
UK Statistics Family,Office for National Statistics,21/05/2021,Exp - Purchase Of Goods/Services - Contractors,Security Advisory,Parity Resources Limited,202073,"25,990.84",Information Management Services,Large,Programme Expenditure,,
UK Statistics Family,Office for National Statistics,21/05/2021,Exp - Purchase Of Goods/Services - Contractors,INTEGRATED DATA STRATEGY AND DELIVERY,Parity Resources Limited,202073,"5,410.50",Information Management Services,Large,Programme Expenditure,,
UK Statistics Family,Office for National Statistics,21/05/2021,Exp - Short-Term Contract & Agency Staff - Full Cost,Data Architecture,Parity Resources Limited,202073,930.6,Information Management Services,Large,Programme Expenditure,,
UK Statistics Family,Office for National Statistics,21/05/2021,Exp - Purchase Of Goods/Services - Contractors,Data Architecture,Parity Resources Limited,202073,"10,047.74",Information Management Services,Large,Programme Expenditure,,
UK Statistics Family,Office for National Statistics,21/05/2021,Exp - Purchase Of Goods/Services - Contractors,Data Architecture,Parity Resources Limited,202073,"3,592.56",Information Management Services,Large,Programme Expenditure,,
UK Statistics Family,Office for National Statistics,21/05/2021,Exp - Purchase Of Goods/Services - Contractors,IT Applications,Parity Resources Limited,202073,"29,034.64",Information Management Services,Large,Programme Expenditure,,
UK Statistics Family,Office for National Statistics,21/05/2021,Exp - Short-Term Contract & Agency Staff - Full Cost,Digital Delivery,Parity Resources Limited,202073,"1,210.68",Information Management Services,Large,Programme Expenditure,,
UK Statistics Family,Office for National Statistics,21/05/2021,Exp - Purchase Of Goods/Services - Contractors,Digital Delivery,Parity Resources Limited,202073,"10,047.74",Information Management Services,Large,Programme Expenditure,,
UK Statistics Family,Office for National Statistics,21/05/2021,Exp - Purchase Of Goods/Services - Contractors,Digital Delivery,Parity Resources Limited,202073,"1,435.39",Information Management Services,Large,Programme Expenditure,,
UK Statistics Family,Office for National Statistics,21/05/2021,Exp - Purchase Of Goods/Services - Contractors,Digital Delivery,Parity Resources Limited,202073,"7,894.65",Information Management Services,Large,Programme Expenditure,,
UK Statistics Family,Office for National Statistics,21/05/2021,Exp - Purchase Of Goods/Services - Contractors,Digital Delivery,Parity Resources Limited,202073,"13,636.22",Information Management Services,Large,Programme Expenditure,,
UK Statistics Family,Office for National Statistics,21/05/2021,Exp - Purchase Of Goods/Services - Contractors,Digital Delivery,Parity Resources Limited,202073,"2,723.40",Information Management Services,Large,Programme Expenditure,,
UK Statistics Family,Office for National Statistics,21/05/2021,Exp - Purchase Of Goods/Services - IT Contractual Services,Digital Delivery,Parity Resources Limited,202073,"2,306.88",Information Management Services,Large,Programme Expenditure,,
UK Statistics Family,Office for National Statistics,21/05/2021,Exp - Purchase Of Goods/Services - Contractors,Data As A Service,Parity Resources Limited,202073,"2,153.08",Information Management Services,Large,Programme Expenditure,,
UK Statistics Family,Office for National Statistics,24/05/2021,EXP - PURCHASE OF GOODS/SERVICES -  NON IT CONTRACTUAL PAYMENTS,Data Collection Service,Bt Global Services,202087,"739,476.53",Telecommunications,Large,Programme Expenditure,,
UK Statistics Family,Office for National Statistics,24/05/2021,Telecoms,IT Operations,Bt Global Services,202087,"94,693.08",Telecommunications,Large,Programme Expenditure,,
UK Statistics Family,Office for National Statistics,24/05/2021,Travel And Subsistence,Corporate Centre,Calder World of Travel,202089,"93,372.58",Multiple Venue Hire ,SME,Programme Expenditure,,
UK Statistics Family,Office for National Statistics,24/05/2021,Exp - Purchase Of Goods/Services - Contractors,Business Architecture,La International,202091,"5,852.74",Information Management Services,SME,Programme Expenditure,,
UK Statistics Family,Office for National Statistics,24/05/2021,Exp - Purchase Of Goods/Services - Contractors,Business Architecture,La International,202091,"2,936.85",Information Management Services,SME,Programme Expenditure,,
UK Statistics Family,Office for National Statistics,24/05/2021,Exp - Purchase Of Goods/Services - Contractors,Testing,La International,202091,"14,961.92",Information Management Services,SME,Programme Expenditure,,
UK Statistics Family,Office for National Statistics,24/05/2021,Exp - Purchase Of Goods/Services - Contractors,Testing,La International,202091,"2,269.40",Information Management Services,SME,Programme Expenditure,,
UK Statistics Family,Office for National Statistics,24/05/2021,Exp - Purchase Of Goods/Services - Contractors,HALE,La International,202091,"2,413.75",Information Management Services,SME,Programme Expenditure,,
UK Statistics Family,Office for National Statistics,24/05/2021,Exp - Purchase Of Goods And Services Consultants,Security Operations,La International,202091,"3,203.88",Information Management Services,SME,Programme Expenditure,,
UK Statistics Family,Office for National Statistics,24/05/2021,Exp - Purchase Of Goods/Services - Contractors,CLOUD ARCHITECTURE,La International,202091,"3,844.62",Information Management Services,SME,Programme Expenditure,,
UK Statistics Family,Office for National Statistics,24/05/2021,Exp - Purchase Of Goods/Services - Contractors,Social Survey Transformation Titchfield,La International,202091,"3,702.20",Information Management Services,SME,Programme Expenditure,,
UK Statistics Family,Office for National Statistics,24/05/2021,Exp - Short-Term Contract & Agency Staff - Full Cost,Census CCS Data Collection,Talent International,202096,"8,347.52",Information Management Services,SME,Programme Expenditure,,
UK Statistics Family,Office for National Statistics,24/05/2021,Exp - Short-Term Contract & Agency Staff - Full Cost,Census CCS Data Collection,Talent International,202096,318.42,Information Management Services,SME,Programme Expenditure,,
UK Statistics Family,Office for National Statistics,24/05/2021,Exp - Short-Term Contract & Agency Staff - Full Cost,International Trade And Transactions,Talent International,202096,"5,328.00",Information Management Services,SME,Programme Expenditure,,
UK Statistics Family,Office for National Statistics,24/05/2021,Exp - Purchase Of Goods/Services - Contractors,Data Architecture,Talent International,202096,"13,200.00",Information Management Services,SME,Programme Expenditure,,
UK Statistics Family,Office for National Statistics,24/05/2021,Exp - Purchase Of Goods/Services - Contractors,Data Architecture,Talent International,202096,"1,980.00",Information Management Services,SME,Programme Expenditure,,
UK Statistics Family,Office for National Statistics,24/05/2021,Exp - Purchase Of Goods/Services - IT Contractual Services,Tech Delivery Next Gen IT And Infrastructure,Diegesis Limited,202097,"34,200.00",Information Management Services,Large,Programme Expenditure,,
UK Statistics Family,Office for National Statistics,24/05/2021,Rent Payable,Property London,Tandem Property Asset Management LLP (Rent),202100,"243,432.00",Rental Charges,Large,Programme Expenditure,,
UK Statistics Family,Office for National Statistics,25/05/2021,Exp - Short-Term Contract & Agency Staff - Full Cost,Census CCS Data Collection,Malikshaw Interim & Executive,202164,"2,798.55",Information Management Services,SME,Programme Expenditure,,
UK Statistics Family,Office for National Statistics,25/05/2021,Exp - Short-Term Contract & Agency Staff - Full Cost,Census CCS Data Collection,Malikshaw Interim & Executive,202164,"3,156.63",Information Management Services,SME,Programme Expenditure,,
UK Statistics Family,Office for National Statistics,25/05/2021,Exp - Short-Term Contract & Agency Staff - Full Cost,CENSUS PARTNERSHIPS AND ENGAGEMENT,Malikshaw Interim & Executive,202164,"3,624.56",Information Management Services,SME,Programme Expenditure,,
UK Statistics Family,Office for National Statistics,25/05/2021,Exp - Short-Term Contract & Agency Staff - Full Cost,Covid Infection Survey,Malikshaw Interim & Executive,202164,"2,613.60",Information Management Services,SME,Programme Expenditure,,
UK Statistics Family,Office for National Statistics,25/05/2021,Exp - Purchase Of Goods/Services - Contractors,Digital Delivery,Malikshaw Interim & Executive,202164,13751.52,Information Management Services,SME,Programme Expenditure,,
UK Statistics Family,Office for National Statistics,25/05/2021,Exp - Short-Term Contract & Agency Staff - Full Cost,Survey Management,Malikshaw Interim & Executive,202164,252.45,Information Management Services,SME,Programme Expenditure,,
UK Statistics Family,Office for National Statistics,25/05/2021,EXP - PURCHASE OF GOODS/SERVICES -  NON IT CONTRACTUAL PAYMENTS,Covid Infection Survey,HH Associates Ltd,202166,"313,894.28",Print and Post Services,SME,Programme Expenditure,,
UK Statistics Family,Office for National Statistics,25/05/2021,Exp - Short-Term Contract & Agency Staff - Full Cost,Census CCS Data Collection,Talent International,202168,"5,056.29",Information Management Services,SME,Programme Expenditure,,
UK Statistics Family,Office for National Statistics,25/05/2021,Exp - Short-Term Contract & Agency Staff - Full Cost,CENSUS PARTNERSHIPS AND ENGAGEMENT,Talent International,202168,"5,296.92",Information Management Services,SME,Programme Expenditure,,
UK Statistics Family,Office for National Statistics,25/05/2021,Exp - Short-Term Contract & Agency Staff - Full Cost,Covid Infection Survey,Talent International,202168,"2,670.89",Information Management Services,SME,Programme Expenditure,,
UK Statistics Family,Office for National Statistics,25/05/2021,Exp - Purchase Of Goods/Services - Contractors,MDR Management,Talent International,202168,14950,Information Management Services,SME,Programme Expenditure,,
UK Statistics Family,Office for National Statistics,25/05/2021,Exp - Purchase Of Goods/Services - Contractors,CDIO UNGP,Talent International,202168,"16,559.72",Information Management Services,SME,Programme Expenditure,,
UK Statistics Family,Office for National Statistics,25/05/2021,Exp - Purchase Of Goods/Services - Contractors,Strategy And Architecture,Talent International,202168,"2,156.40",Information Management Services,SME,Programme Expenditure,,
UK Statistics Family,Office for National Statistics,25/05/2021,Exp - Purchase Of Goods/Services - Contractors,Strategy And Architecture,Talent International,202168,"14,376.00",Information Management Services,SME,Programme Expenditure,,
UK Statistics Family,Office for National Statistics,25/05/2021,Exp - Purchase Of Goods/Services - Contractors,Tech Delivery Next Gen IT And Infrastructure,Talent International,202168,"2,400.00",Information Management Services,SME,Programme Expenditure,,
UK Statistics Family,Office for National Statistics,25/05/2021,Exp - Short-Term Contract & Agency Staff - Full Cost,Survey Management,Talent International,202168,335.52,Information Management Services,SME,Programme Expenditure,,
UK Statistics Family,Office for National Statistics,25/05/2021,Exp - Short-Term Contract & Agency Staff - Full Cost,Census CCS Data Collection,Parity Resources Limited,202171,937.07,Information Management Services,Large,Programme Expenditure,,
UK Statistics Family,Office for National Statistics,25/05/2021,Exp - Short-Term Contract & Agency Staff - Full Cost,Census CCS Data Collection,Parity Resources Limited,202171,966.24,Information Management Services,Large,Programme Expenditure,,
UK Statistics Family,Office for National Statistics,25/05/2021,Exp - Purchase Of Goods/Services - Contractors,Portfolio Delivery,Parity Resources Limited,202171,"3,592.50",Information Management Services,Large,Programme Expenditure,,
UK Statistics Family,Office for National Statistics,25/05/2021,Exp - Purchase Of Goods/Services - Contractors,Commercial Services,Parity Resources Limited,202171,"32,328.36",Information Management Services,Large,Programme Expenditure,,
UK Statistics Family,Office for National Statistics,25/05/2021,Exp - Purchase Of Goods/Services - Contractors,Digital Delivery,Parity Resources Limited,202171,"1,435.39",Information Management Services,Large,Programme Expenditure,,
UK Statistics Family,Office for National Statistics,25/05/2021,Exp - Short-Term Contract & Agency Staff - Full Cost,Social Survey Transformation Titchfield,Parity Resources Limited,202171,812.44,Information Management Services,Large,Programme Expenditure,,
UK Statistics Family,Office for National Statistics,25/05/2021,Exp - Purchase Of Goods/Services - IT Contractual Services,Tech Delivery Next Gen IT And Infrastructure,Diegesis Limited,202172,"43,320.00",Information Management Services,Large,Programme Expenditure,,
UK Statistics Family,Office for National Statistics,25/05/2021,Travel And Subsistence,Corporate Centre,Corporate Travel Management ,202178,"25,442.63",Travel and Accommodation,SME,Programme Expenditure,,
UK Statistics Family,Office for National Statistics,25/05/2021,Travel And Subsistence,Corporate Centre,Calder World of Travel,202182,"95,660.75",Multiple Venue Hire ,SME,Programme Expenditure,,
UK Statistics Family,Office for National Statistics,25/05/2021,Exp - Purchase Of Goods/Services - Contractors,Commercial Services,Certes Computing Ltd,202183,"14,730.95",Information Management Services,SME,Programme Expenditure,,
UK Statistics Family,Office for National Statistics,25/05/2021,Exp - Purchase Of Goods/Services - Contractors,CLOUD ARCHITECTURE,Certes Computing Ltd,202183,"3,599.64",Information Management Services,SME,Programme Expenditure,,
UK Statistics Family,Office for National Statistics,25/05/2021,Exp - Purchase Of Goods/Services - Contractors ,IT Operations,Certes Computing Ltd,202183,"14,960.66",Information Management Services,SME,Programme Expenditure,,
UK Statistics Family,Office for National Statistics,25/05/2021,Exp - Purchase Of Goods/Services - Contractors,Digital Delivery,Certes Computing Ltd,202183,"19,207.86",Information Management Services,SME,Programme Expenditure,,
UK Statistics Family,Office for National Statistics,25/05/2021,Exp - Purchase Of Goods/Services - Contractors,Digital Delivery,Certes Computing Ltd,202183,"12,169.20",Information Management Services,SME,Programme Expenditure,,
UK Statistics Family,Office for National Statistics,25/05/2021,Exp - Purchase Of Goods And Services Consultants,Stakeholder Engagement And Comms,La International,202184,"3,511.20",Information Management Services,SME,Programme Expenditure,,
UK Statistics Family,Office for National Statistics,25/05/2021,Exp - Purchase Of Goods/Services - Contractors,Testing,La International,202184,"2,563.10",Information Management Services,SME,Programme Expenditure,,
UK Statistics Family,Office for National Statistics,25/05/2021,EXP - PURCHASE OF GOODS/SERVICES -  NON IT CONTRACTUAL PAYMENTS,Productivity Research And Professional Development,La International,202184,"14,737.84",Information Management Services,SME,Programme Expenditure,,
UK Statistics Family,Office for National Statistics,25/05/2021,Exp - Purchase Of Goods/Services - Contractors,Tech Delivery Legacy Sp,La International,202184,"2,819.38",Information Management Services,SME,Programme Expenditure,,
UK Statistics Family,Office for National Statistics,25/05/2021,Exp - Short-Term Contract & Agency Staff - Full Cost,Social Survey Transformation Titchfield,La International,202184,"2,713.47",Information Management Services,SME,Programme Expenditure,,
UK Statistics Family,Office for National Statistics,25/05/2021,Exp - Purchase Of Goods/Services - Contractors,Business Architecture,LA FOSSE ASSOCIATES LIMITED,202187,"20,563.95",Information Management Services,Large,Programme Expenditure,,
UK Statistics Family,Office for National Statistics,25/05/2021,Exp - Purchase Of Goods/Services - Contractors,Business Architecture,LA FOSSE ASSOCIATES LIMITED,202187,"2,880.00",Information Management Services,Large,Programme Expenditure,,
UK Statistics Family,Office for National Statistics,25/05/2021,Exp - Purchase Of Goods/Services - Contractors,Business Architecture,LA FOSSE ASSOCIATES LIMITED,202187,"5,100.00",Information Management Services,Large,Programme Expenditure,,
UK Statistics Family,Office for National Statistics,25/05/2021,Exp - Purchase Of Goods/Services - Contractors,Testing,LA FOSSE ASSOCIATES LIMITED,202187,2400,Information Management Services,Large,Programme Expenditure,,
UK Statistics Family,Office for National Statistics,25/05/2021,Exp - Purchase Of Goods/Services - Contractors,Consultancy Management,LA FOSSE ASSOCIATES LIMITED,202187,"5,160.00",Information Management Services,Large,Programme Expenditure,,
UK Statistics Family,Office for National Statistics,25/05/2021,Exp - Purchase Of Goods/Services - Contractors,Programme Support,LA FOSSE ASSOCIATES LIMITED,202187,"2,200.00",Information Management Services,Large,Programme Expenditure,,
UK Statistics Family,Office for National Statistics,25/05/2021,Exp - Purchase Of Goods/Services - Contractors,WIDER SURVEILLANCE STUDIES,LA FOSSE ASSOCIATES LIMITED,202187,"1,800.00",Information Management Services,Large,Programme Expenditure,,
UK Statistics Family,Office for National Statistics,25/05/2021,Exp - Purchase Of Goods/Services - Contractors,Digital Publishing,LA FOSSE ASSOCIATES LIMITED,202187,"3,480.00",Information Management Services,Large,Programme Expenditure,,
UK Statistics Family,Office for National Statistics,25/05/2021,Exp - Purchase Of Goods/Services - Contractors,Digital Publishing,LA FOSSE ASSOCIATES LIMITED,202187,"2,880.00",Information Management Services,Large,Programme Expenditure,,
UK Statistics Family,Office for National Statistics,25/05/2021,Exp - Purchase Of Goods/Services - Contractors,Data Architecture,LA FOSSE ASSOCIATES LIMITED,202187,"6,000.00",Information Management Services,Large,Programme Expenditure,,
UK Statistics Family,Office for National Statistics,25/05/2021,FM Contract Payments,Property London,Tandem Property Asset Management LLP - DG Lease Limited Service Charge Account,202191,"55,008.00",Rental Charges,Large,Programme Expenditure,,
UK Statistics Family,Office for National Statistics,25/05/2021,Electricity,Property London,Tandem Property Asset Management LLP - DG Lease Limited Service Charge Account,202191,"12,446.59",Rental Charges,Large,Programme Expenditure,,
UK Statistics Family,Office for National Statistics,25/05/2021,Marketing & Media,Social Survey Transformation Newport,Banner Group Ltd,202193,"43,920.00",Stationary,SME,Programme Expenditure,,
UK Statistics Family,Office for National Statistics,06/05/2021,Exp - Purchase Of Goods/Services - Incentive Payments,Covid Infection Survey,Sodexo Motivation Solutions U.K. ltd,30002749,"1,207,562.68",Survey Response Incentive Vouchers,Large,Programme Expenditure,,
UK Statistics Family,Office for National Statistics,10/05/2021,Exp - Purchase Of Goods/Services - Incentive Payments,Covid Infection Survey,Sodexo Motivation Solutions U.K. ltd,30002757,"905,602.04",Survey Response Incentive Vouchers,Large,Programme Expenditure,,
UK Statistics Family,Office for National Statistics,14/05/2021,Exp - Purchase Of Goods/Services - Incentive Payments,Covid Infection Survey,Sodexo Motivation Solutions U.K. ltd,30002763,"38,611.68",Survey Response Incentive Vouchers,Large,Programme Expenditure,,
UK Statistics Family,Office for National Statistics,14/05/2021,Exp - Purchase Of Goods/Services - Incentive Payments,Covid Infection Survey,Sodexo Motivation Solutions U.K. ltd,30002764,"2,698,443.12",Survey Response Incentive Vouchers,Large,Programme Expenditure,,
UK Statistics Family,Office for National Statistics,17/05/2021,Surveys,Covid Infection Survey,IQVIA Limited,30002767,"25,589,476.80",Statistical Services,Large,Programme Expenditure,,
UK Statistics Family,Office for National Statistics,17/05/2021,Exp - Purchase Of Goods/Services - Incentive Payments,Covid Infection Survey,Sodexo Motivation Solutions U.K. ltd,30002769,"65,706.00",Survey Response Incentive Vouchers,Large,Programme Expenditure,,
UK Statistics Family,Office for National Statistics,21/05/2021,Exp - Purchase Of Goods/Services - Incentive Payments,Covid Infection Survey,Sodexo Motivation Solutions U.K. ltd,30002775,"88,788.00",Survey Response Incentive Vouchers,Large,Programme Expenditure,,
UK Statistics Family,Office for National Statistics,21/05/2021,Exp - Purchase Of Goods/Services - Incentive Payments,Covid Infection Survey,Sodexo Motivation Solutions U.K. ltd,30002776,"2,502,346.48",Survey Response Incentive Vouchers,Large,Programme Expenditure,,
UK Statistics Family,Office for National Statistics,21/05/2021,Exp - Purchase Of Goods/Services - Incentive Payments,Census & Soc Methodology Dd,Sodexo Motivation Solutions U.K. ltd,30002776,961.4,Survey Response Incentive Vouchers,Large,Programme Expenditure,,
UK Statistics Family,Office for National Statistics,24/05/2021,Exp - Purchase Of Goods/Services - Incentive Payments,Covid Infection Survey,Sodexo Motivation Solutions U.K. ltd,30002778,"29,820.00",Survey Response Incentive Vouchers,Large,Programme Expenditure,,
UK Statistics Family,Office for National Statistics,25/05/2021,Exp - Purchase Of Goods/Services - Incentive Payments,Covid Infection Survey,Sodexo Motivation Solutions U.K. ltd,30002787,"79,470.72",Survey Response Incentive Vouchers,Large,Programme Expenditure,,
UK Statistics Family,Office for National Statistics,25/05/2021,Surveys,Covid Infection Survey,IQVIA Limited,30002788,"13,002,477.65",Statistical Services,Large,Programme Expenditure,,
UK Statistics Family,Office for National Statistics,26/05/2021,Exp - Purchase Of Goods/Services - Incentive Payments,Covid Infection Survey,Sodexo Motivation Solutions U.K. ltd,30002797,"131,285.76",Survey Response Incentive Vouchers,Large,Programme Expenditure,,
UK Statistics Family,Office for National Statistics,28/05/2021,Exp - Purchase Of Goods/Services - Incentive Payments,Covid Infection Survey,Sodexo Motivation Solutions U.K. ltd,30002806,"2,152,600.82",Survey Response Incentive Vouchers,Large,Programme Expenditure,,
,,,,,,,"84,235,823.18",,,
